{"text_format":"1","workbook":"xlsx","n_sheets":8,"sheets":["Product Selector Tool","Form","Output","INPUTS","Data","Filters","OSHA Rules","SC Cost Calculator"],"not_rendered":{"charts":0,"images":2,"macros":1,"external_links":2,"defined_names":72,"comments":0,"pivot_tables":0},"unopened":[],"bounds":{"document_bytes":16777216,"sheet_cells":100000,"rows_first":2000,"rows_last":500,"rows_between":2000,"halvings":0,"cell_chars":16384,"cell_head_chars":4096},"cells_cut":0,"cells_raw":0,"read":"whole","date_system":"1900"}

{"sheet":"Product Selector Tool","index":0,"n_rows":75,"n_cols":26,"rows_kept":75,"cut":false,"hidden":true,"merged":[]}
["Product Selector - Updated February 2020"]
[]
[null,"Introductory Questions"]
[null,"1) ","What Type Work Environment(s) do you have?   (Check all that Apply)  Drop Down Menu and only those checked are displayed"]
[null,"2) ","We are suggesting you take advantage of  the benefits of SmartCompliance:  Cost Savings, Convenient Re-ordering, Staying Compliant. We will demonstrate the cost savings a the end of the selection."]
[null,"2a) ","Does your company dispense medications to your employees?"]
[null,"3) ","How many buildings do you have?  "]
[null,"3a) ","What is the average number of floors per building?"]
[null,"3b) ","How many cabinets would be needed on an average floor in those building(s) that employees can reach a cabinet within 1 minute?"]
[null,"4)  ","It looks like you need X first Aid Cabinets.  How many of those X cabinets have Heavy usage?  Medium Usage? Light Usage?  The total should equal X"]
[null,"4a) ","Would you like to describe the locations to keep track of which cabinets go where?"]
[]
[null,"5) ","Do you have any Special First Aid Need Areas (Check all the Apply)  Drop Down menu of Eyewash, Burns, Bleeding Control    "]
[null,"5a) ","We can review the OSHA regulations  if you'd like for different types of first aid needs to help you decide on your needs"]
[null,"6) ","How many areas have these special first aid needs in all the buildings"]
[null,"6a)   ","It looks like you need X first Aid Cabinets.  How many of those X cabinets have heavy usage?  Medium Usage? Light Usage?  The total should equal X"]
[]
[]
["TYPE OF BUSINESS","Number ","Number ","# of Locations to get","Total # of ",null,"Number of ","Approximate","SC Kit Covers","Medications",null,"Medications",null,"SC Kit Covers","No Meds",null,"No Medications",null,"Kit Covers","Medications",null,"Medications","Kit Covers","No Medications",null,"No Medications"]
[null,"of Buildings","of Floors","1 Min. Response Time","Cabinets","Usage","Kits Each Type","# of Employees","# of Employees","SmartCompliance",null,"Description SmartCompliance","Cost","# of Employees","SmartCompliance",null,"Description SmartCompliance","Cost","# of Employees","Kit",null,"Description","# of Employees","Kit",null,"Description"]
["Office",null,null,null,null,"Heavy",4,{"$f":"G21*S21","v":400},150,90732,"https://www.firstaidonly.com/xl-cabinet-xl-smartcompliance-cabinet.html?___store=fao","XL Metal SC with Meds, 909 pcs.",191.83,150,90829,"https://www.firstaidonly.com/xl-smartcompliance-general-business-first-aid-cabinet-metal.html?___store=fao","XL Metal SC No Meds, 654 pcs.",191.83,100,90575,"https://www.firstaidonly.com/3-shelf-first-aid-ansi-b-metal-cabinet-with-medication.html?___store=fao","3-Shelf Metal, ANSI B, 676 pcs. with Meds",100,90790,"https://www.firstaidonly.com/3-shelf-first-aid-ansi-b-first-aid-metal-cabinet-without-medications.html?___store=fao","3-Shelf Metal, ANSI B, 676 pcs. No Meds"]
[null,1,4,3,{"$f":"B22*C22*D22","v":12},"Medium",4,{"$f":"G22*S22","v":300},50,"1000-FAE-0103","https://www.firstaidonly.com/large-smart-compliance-general-workplace-first-aid-plastic-cabinet-with-pain-relief.html?___store=fao","Large Plastic SC with Meds, 245 pcs.",59.25,50,"1001-FAE-0103","https://www.firstaidonly.com/large-plastic-smart-compliance-white-business-cabinet-with-carrying-handle.html?___store=fao","Large Plastic SC No Meds, 206 pcs.",59.25,75,90572,"https://www.firstaidonly.com/2-shelf-first-aid-ansi-a-metal-cabinet-with-medications.html?___store=fao","2-Shelf Metal ANSI A , 347 pieces with Meds",75,90603,"https://www.firstaidonly.com/2-shelf-first-aid-ansi-b-metal-cabinet.html?___store=fao","2-Shelf Metal ANSI B+, 467 pieces No Meds"]
[null,null,null,null,null,"Light",4,{"$f":"G23*S23","v":100},25,90578,"https://www.firstaidonly.com/medium-metal-smart-compliance-cabinet-ansi-a-without-medications.html?___store=fao","Medium Metal SC, No Meds, 94 pcs.",57.51,25,90578,"https://www.firstaidonly.com/medium-metal-smart-compliance-cabinet-ansi-a-without-medications.html?___store=fao","Medium Metal SC, No Meds, 94 pcs.",57.51,25,"223-U/FAO","https://www.firstaidonly.com/25-person-first-aid-kit-plastic-case-with-dividers.html?___store=fao","25 Person Plastic Bulk, 106 pcs",25,90562,"https://www.firstaidonly.com/25-person-first-aid-kit-ansi-a-plastic-case.html?___store=fao","25 Person Plastic Bulk, 89 pcs, No Meds"]
[null,null,null,null,null,null,{"$f":"E22-G21-G22-G23","v":0},{"$f":"SUM(H21:H23)","v":800}]
["Light Manufacturing",null,null,null,null,null,null,{"$f":"G25*S25","v":0}]
[null,2,1,4,{"$f":"B26*C26*D26","v":8},"Medium",null,{"$f":"G26*S26","v":0},50,746000,"https://www.firstaidonly.com/large-metal-smart-compliance-first-aid-cabinet-ansi-a-compliant-with-medication.html?___store=fao","Large Metal SC with Meds, 241 pcs.",86.29,50,746004,"https://www.firstaidonly.com/large-metal-smart-compliance-first-aid-cabinet-ansi-a-compliant-without-medications.html?___store=fao","Large Metal SC No Meds, 202 pcs.",86.29,75,90572,"https://www.firstaidonly.com/2-shelf-first-aid-ansi-a-metal-cabinet-with-medications.html?___store=fao","2-Shelf Metal ANSI A , 347 pieces with Meds",75,90603,"https://www.firstaidonly.com/2-shelf-first-aid-ansi-b-metal-cabinet.html?___store=fao","2-Shelf Metal ANSI B+, 467 pieces No Meds"]
[null,null,null,null,null,"Light",null,{"$f":"G27*S27","v":0},25,90578,"https://www.firstaidonly.com/medium-metal-smart-compliance-cabinet-ansi-a-without-medications.html?___store=fao","Medium Metal SC, No Meds, 94 pcs.",57.51,25,90578,"https://www.firstaidonly.com/medium-metal-smart-compliance-cabinet-ansi-a-without-medications.html?___store=fao","Medium Metal SC, No Meds, 94 pcs.",57.51,25,90563,"https://www.firstaidonly.com/25-person-first-aid-kit-ansi-a-plastic-case-2.html?___store=fao","25 Person Plastic Bulk, 141 pcs",25,90562,"https://www.firstaidonly.com/25-person-first-aid-kit-ansi-a-plastic-case.html?___store=fao","25 Person Plastic Bulk, 89 pcs"]
[null,null,null,null,null,null,{"$f":"E26-G25-G26-G27","v":8},{"$f":"SUM(H25:H27)","v":0}]
["Heavy Manufacturing",null,null,null,null,"Very Heavy",null,{"$f":"G29*S29","v":0},200,90832,"https://www.firstaidonly.com/xxl-smartcompliance-general-business-first-aid-cabinet-with-medication.html?___store=fao","XXL Metal SC with Meds, 1643 pcs.",191.83,200,90833,"https://www.firstaidonly.com/xxl-smartcompliance-general-business-first-aid-cabinet-without-medication.html?___store=fao","XXL Metal SC No Meds, 728 pcs.",191.83,200,90577,"https://www.firstaidonly.com/5-shelf-first-aid-ansi-b-metal-cabinet-with-medication.html?___store=fao","5-Shelf Metal ANSI B+, with Meds, 2134 pcs.",200,90577,"https://www.firstaidonly.com/5-shelf-first-aid-ansi-b-metal-cabinet-with-medication.html?___store=fao","5-Shelf Metal ANSI B+, WITH  Meds, 2134 pcs."]
[null,null,null,null,{"$f":"B30*C30*D30","v":0},"Heavy",null,{"$f":"G30*S30","v":0},150,90732,"https://www.firstaidonly.com/xl-cabinet-xl-smartcompliance-cabinet.html?___store=fao","XL Metal SC with Meds, 909 pcs.",191.83,150,90829,"https://www.firstaidonly.com/xl-smartcompliance-general-business-first-aid-cabinet-metal.html?___store=fao","XL Metal SC No Meds, 654 pcs.",191.83,150,90576,"https://www.firstaidonly.com/4-shelf-first-aid-ansi-b-metal-cabinet-with-medication.html?___store=fao","4-Shelf Metal ANSI B+, with Meds, 1461 pcs.",150,90576,"https://www.firstaidonly.com/4-shelf-first-aid-ansi-b-metal-cabinet-with-medication.html?___store=fao","4-Shelf Metal ANSI B+, WITH Meds, 1461 pcs."]
[null,null,null,null,null,null,null,{"$f":"G31*S31","v":0}]
[null,null,null,null,null,null,{"$f":"E30-G29-G30-G31","v":0},{"$f":"SUM(H29:H31)","v":0}]
["Warehouse",null,null,null,null,"Heavy",null,{"$f":"G33*S33","v":0},150,90732,"https://www.firstaidonly.com/xl-cabinet-xl-smartcompliance-cabinet.html?___store=fao","XL Metal SC with Meds, 909 pcs.",191.83,150,90829,"https://www.firstaidonly.com/xl-smartcompliance-general-business-first-aid-cabinet-metal.html?___store=fao","XL Metal SC No Meds, 654 pcs.",191.83,100,90575,"https://www.firstaidonly.com/3-shelf-first-aid-ansi-b-metal-cabinet-with-medication.html?___store=fao","3-Shelf Metal, ANSI B, 676 pcs. with Meds",100,90790,"https://www.firstaidonly.com/3-shelf-first-aid-ansi-b-first-aid-metal-cabinet-without-medications.html?___store=fao","3-Shelf Metal, ANSI B, 676 pcs. No Meds"]
[null,null,null,null,{"$f":"B34*C34*D34","v":0},"Medium",null,{"$f":"G34*S34","v":0},50,746000,"https://www.firstaidonly.com/large-metal-smart-compliance-first-aid-cabinet-ansi-a-compliant-with-medication.html?___store=fao","Large Metal SC with Meds, 241 pcs.",86.29,50,746004,"https://www.firstaidonly.com/large-metal-smart-compliance-first-aid-cabinet-ansi-a-compliant-without-medications.html?___store=fao","Large Metal SC No Meds, 202 pcs.",86.29,75,90572,"https://www.firstaidonly.com/2-shelf-first-aid-ansi-a-metal-cabinet-with-medications.html?___store=fao","2-Shelf Metal ANSI A , 347 pieces with Meds",75,90603,"https://www.firstaidonly.com/2-shelf-first-aid-ansi-b-metal-cabinet.html?___store=fao","2-Shelf Metal ANSI B+, 467 pieces No Meds"]
[null,null,null,null,null,"Light",null,{"$f":"G35*S35","v":0},25,90578,"https://www.firstaidonly.com/medium-metal-smart-compliance-cabinet-ansi-a-without-medications.html?___store=fao","Medium Metal SC, No Meds, 94 pcs.",57.51,25,90578,"https://www.firstaidonly.com/medium-metal-smart-compliance-cabinet-ansi-a-without-medications.html?___store=fao","Medium Metal SC, No Meds, 94 pcs.",57.51,25,"224-U/FAO","https://www.firstaidonly.com/25-person-first-aid-kit-metal-case.html?___store=fao","25-Person Metal, Bulk, 106 pcs.",25,90560,"https://www.firstaidonly.com/25-person-first-aid-kit-ansi-a-metal-case.html?___store=fao","25 Person Metal Bulk, 89 pcs, No Meds"]
[null,null,null,null,null,null,{"$f":"E34-G33-G34-G35","v":0},{"$f":"SUM(H33:H35)","v":0}]
["Fleet Vehicles",null,null,null,null,"Heavy",null,{"$f":"G37*S37","v":0},25,90578,null,"Medium Metal SmartCompliance, 94 pcs.",57.51,25,90578,null,"Medium Metal SC No Meds, 94 pcs.",57.51,50,6450,null,"50-person Metal, OSHA, 246 pcs. NO MEDS",50,6450,null,"50-person Metal, OSHA, 246 pcs., No Meds"]
[null,null,null,null,{"$f":"B38*C38*D38","v":0},"Medium",null,{"$f":"G38*S38","v":0},null,null,null,null,null,null,null,null,null,null,25,90672,null,"25-person Metal, ANSI A, 114 pcs., Medications",25,"220-O",null,"25-person Plastic, OSHA, 85 pcs., No Meds"]
[null,null,null,null,null,"Light",null,{"$f":"G39*S39","v":0},10,91150,null,"10 person Bulk Plastic Case,89 pcs.",10.85,10,91150,null,"10 person Bulk Plastic Case,89 pcs.",10.85,10,91150,null,"10 person Bulk Plastic Case,89 pcs., NO MEDS",10,91150,null,"10 person Bulk Plastic Case,89 pcs., No Meds"]
[null,null,null,null,null,null,{"$f":"E38-G37-G38-G39","v":0},{"$f":"SUM(H37:H39)","v":0}]
["Food Service",null,null,null,null,"Heavy",null,{"$f":"G41*S41","v":0},150,90830,"https://www.firstaidonly.com/xl-smartcompliance-food-service-cabinet-with-medications-metal.html?___store=fao","XL Metal SC with Meds, 937 pcs.",191.83,150,90831,"https://www.firstaidonly.com/xl-smartcompliance-food-service-cabinet-without-medications-metal.html?___store=fao","XL Metal SC No Meds Meds, 697 pcs.",191.83]
[null,null,null,null,{"$f":"B42*C42*D42","v":0},"Medium",null,{"$f":"G42*S42","v":0},50,746005,"https://www.firstaidonly.com/large-metal-smart-compliance-food-service-first-aid-cabinet-ansi-a-compliant-with-medication.html?___store=fao","Large Metal SC with Meds, 289 pcs.",86.29,50,746006,"https://www.firstaidonly.com/large-metal-smart-compliance-food-service-first-aid-cabinet-ansi-a-compliant-without-medication.html?___store=fao","Large Metal SC No Meds Meds, 260 pcs.",86.29]
[null,null,null,null,null,"Light",null,{"$f":"G43*S43","v":0},25,90578,"https://www.firstaidonly.com/medium-metal-smart-compliance-cabinet-ansi-a-without-medications.html?___store=fao","Medium Metal SC, No Meds, 94 pcs.",57.51,25,90578,"https://www.firstaidonly.com/medium-metal-smart-compliance-cabinet-ansi-a-without-medications.html?___store=fao","Medium Metal SC, No Meds, 94 pcs.",57.51]
[null,null,null,null,null,null,{"$f":"E42-G41-G42-G43","v":0},{"$f":"SUM(H41:H43)","v":0}]
[]
["SPECIAL FIRST AID NEED AREAS",null,null,null,null,null,null,{"$f":"H24+H28+H32+H36+H40+H44","v":800},"Total Employees"]
[]
["BBP Kits"]
[null,{"$f":"AVERAGE(B22, B26, B30, B34, B42)","v":1.5},{"$f":"AVERAGE(C22, C26, C30, C34, C42)","v":2.5},1,{"$f":"B49*C49*D49","v":3.75},"Advanced",null,null,null,3060,"N/A","BBP and Protective Apparel in Plastic case - 32 pcs."]
[null,null,null,null,null,"Basic",null,null,null,"214-U/FAO","https://www.firstaidonly.com/wall-mount-blood-borne-pathogen-bbp-and-bodily-fluid-spill-kit-in-plastic-carry-case-osha-24-pieces-white.html?___store=fao","BBP Spill Clean-Up Kit with Apparel- 23 pcs"]
[null,null,null,null,null,null,{"$f":"E49-G48-G49-G50","v":3.75}]
["First Responder Kit"]
[null,{"$f":"B49","v":1.5},{"$f":"C49","v":2.5},1,{"$f":"B53*C53*D53","v":3.75},"Advanced",null,null," ",91146,"N/A","Enhanced First Responder Kit, 168 pcs. Bleed & Burn"]
[null,null,null,null,null,"Basic",null,null,null,"520-FR","https://www.firstaidonly.com/first-responder-kit-large-158-piece-bag.html?___store=fao","Large First Responder Bag, 158 pcs."]
[null,null,null,null,null,null,{"$f":"E53-G52-G53-G54","v":3.75}]
["Eyewash Station"]
[null,null,null,null,{"$f":"B57*C57*D57","v":0},"Advanced",null,null,null,"24-300","https://www.firstaidonly.com/eyewash-station-double-32-oz-screw-cap-bottle.html?___store=fao","Double 32 oz. Station, Screw Cap"]
[null,null,null,null,null,"Basic",null,null,null,"24-102","https://www.firstaidonly.com/eyewash-station-double-16-oz-screw-cap-bottle.html?___store=fao","Double 16 oz. Station, Screw Cap"]
[null,null,null,null,null,null,{"$f":"E57-G56-G57-G58","v":0}]
["Burn Kit"]
[null,null,null,null,{"$f":"B61*C61*D61","v":0},"Advanced",null,null,null,36003,"https://www.firstaidonly.com/waterjel-large-burn-kit-fabric-case.html?___store=fao","WaterJel Large Burn Kit, 12 pcs."]
[null,null,null,null,null,"Basic",null,null,null,"440-O/FAO","https://www.firstaidonly.com/burn-care-kit-plastic-case.html?___store=fao","Burn Care Kit, 11 pcs."]
[null,null,null,null,null,null,{"$f":"E61-G60-G61-G62","v":0}]
["Bleeding Control"]
[null,null,null,null,{"$f":"B65*C65*D65","v":0},"Advanced",null,null,null,91137,"https://www.firstaidonly.com/enhanced-pro-bleeding-control-kit.html?___store=fao","Enhanced Pro Bleeding Control Bag"]
[null,null,null,null,null,"Basic",null,null,null,91135,"https://www.firstaidonly.com/basic-pro-bleeding-control-kit.html?___store=fao","Basic  Pro Bleeding Control Pouch"]
[null,null,null,null,null,null,{"$f":"E65-G64-G65-G66","v":0}]
["Fleet Vehicles"]
[null,null,null,null,{"$f":"B69*C69*D69","v":0},"Advanced",null,null,null,90672,"https://www.firstaidonly.com/25-person-vehicle-ansi-a-first-aid-kit-metal-and-weatherproof-case.html?___store=fao","25-person Metal, ANSI A, 114 pcs., Medications"]
[null,null,null,null,null,"Basic",null,null,null,91150,"https://www.firstaidonly.com/10-person-plastic-light-duty-vehicle-first-aid-kit.html?___store=fao","10 person Bulk Plastic Case,89 pcs., NO MEDS"]
[null,null,null,null,null,null,{"$f":"E69-G68-G69-G70","v":0}]
[]
[null,null,null,null,null,"4& 5 Shelf To Convert",null,null,null,91131,"https://www.firstaidonly.com/smartcompliance-retrofit-business-without-medications-50-person-ansi-compliant.html?___store=fao","RetroFit Grid, ANSI B, No Meds, 218 pcs"]
[null,null,null,null,null,"3-Shelf To Convert",null,null,null,91172,"N/A","RetroFit Grid, ANSI A, No Meds, 108 pcs"]
[null,null,null,null,null,"4& 5 Shelf Food Service to Convert",null,null,null,91132,"https://www.firstaidonly.com/smartcompliance-retrofit-food-service-without-medications-50-person-ansi-compliant.html?___store=fao","RetroFit Grid, ANSI B, No Meds, 262 pcs"]

{"sheet":"Form","index":1,"n_rows":219,"n_cols":11,"rows_kept":219,"cut":false,"hidden":false,"merged":[[42,1,42,2],[50,1,50,2],[157,1,157,3],[157,4,157,6],[158,1,158,3],[158,4,158,6],[152,1,152,3],[152,4,152,6],[153,1,153,3],[153,4,153,6],[154,1,154,3],[154,4,154,6],[155,1,155,3],[155,4,155,6],[156,1,156,3],[156,4,156,6],[147,1,147,3],[147,4,147,6],[148,1,148,3],[148,4,148,6],[149,1,149,3],[149,4,149,6],[150,1,150,3],[150,4,150,6],[151,1,151,3],[151,4,151,6],[142,1,142,3],[142,4,142,6],[143,1,143,3],[143,4,143,6],[144,1,144,3],[144,4,144,6],[145,1,145,3],[145,4,145,6],[146,1,146,3],[146,4,146,6],[137,4,137,6],[138,1,138,3],[138,4,138,6],[139,1,139,3],[139,4,139,6],[140,1,140,3],[140,4,140,6],[141,1,141,3],[141,4,141,6],[126,1,126,3],[126,4,126,6],[127,1,127,3],[127,4,127,6],[128,1,128,3],[128,4,128,6],[129,1,129,3],[129,4,129,6],[130,1,130,3],[130,4,130,6],[121,1,121,3],[121,4,121,6],[122,1,122,3],[122,4,122,6],[123,1,123,3],[123,4,123,6],[124,1,124,3],[124,4,124,6],[125,1,125,3],[125,4,125,6],[116,1,116,3],[116,4,116,6],[117,1,117,3],[117,4,117,6],[118,1,118,3],[118,4,118,6],[119,1,119,3],[119,4,119,6],[120,1,120,3],[120,4,120,6],[87,1,87,3],[87,4,87,6],[88,1,88,3],[88,4,88,6],[89,1,89,3],[89,4,89,6],[90,1,90,3],[90,4,90,6],[91,1,91,3],[91,4,91,6],[82,1,82,3],[82,4,82,6],[83,1,83,3],[83,4,83,6],[84,1,84,3],[84,4,84,6],[85,1,85,3],[85,4,85,6],[86,1,86,3],[86,4,86,6],[77,1,77,3],[77,4,77,6],[78,1,78,3],[78,4,78,6],[79,1,79,3],[79,4,79,6],[80,1,80,3],[80,4,80,6],[81,1,81,3],[81,4,81,6],[67,1,67,3],[67,4,67,6],[68,1,68,3],[68,4,68,6],[69,1,69,3],[69,4,69,6],[70,1,70,3],[70,4,70,6],[71,1,71,3],[71,4,71,6],[65,1,65,3],[65,4,65,6],[66,1,66,3],[66,4,66,6],[22,2,22,3],[17,2,17,3],[42,5,42,6],[43,5,43,6],[46,5,46,6],[47,5,47,6],[59,4,59,6],[59,1,59,3],[60,1,60,3],[60,4,60,6],[61,1,61,3],[61,4,61,6],[62,1,62,3],[62,4,62,6],[63,1,63,3],[63,4,63,6],[64,1,64,3],[64,4,64,6],[52,5,52,6],[28,2,28,3],[217,1,217,3],[211,1,211,3],[213,1,213,3],[177,2,177,3],[176,2,176,3],[178,2,178,3],[179,2,179,3],[216,1,216,3],[191,5,191,7],[192,5,192,7],[193,5,193,7],[194,5,194,7],[195,5,195,7],[196,5,196,7],[190,5,190,7],[72,1,72,3],[72,4,72,6],[73,1,73,3],[73,4,73,6],[74,1,74,3],[74,4,74,6],[75,1,75,3],[75,4,75,6],[76,1,76,3],[76,4,76,6],[92,1,92,3],[92,4,92,6],[93,1,93,3],[93,4,93,6],[94,1,94,3],[94,4,94,6],[95,1,95,3],[95,4,95,6],[96,1,96,3],[96,4,96,6],[97,1,97,3],[97,4,97,6],[98,1,98,3],[98,4,98,6],[99,1,99,3],[104,1,104,3],[104,4,104,6],[105,1,105,3],[105,4,105,6],[99,4,99,6],[100,1,100,3],[100,4,100,6],[101,1,101,3],[101,4,101,6],[102,1,102,3],[102,4,102,6],[103,1,103,3],[103,4,103,6],[114,1,114,3],[114,4,114,6],[115,1,115,3],[115,4,115,6],[106,1,106,3],[106,4,106,6],[107,1,107,3],[107,4,107,6],[108,1,108,3],[108,4,108,6],[109,1,109,3],[109,4,109,6],[110,1,110,3],[110,4,110,6],[218,1,218,8],[136,1,136,3],[136,4,136,6],[137,1,137,3],[189,1,189,8],[44,5,44,6],[45,5,45,6],[48,5,48,6],[131,1,131,3],[131,4,131,6],[132,1,132,3],[132,4,132,6],[133,1,133,3],[133,4,133,6],[134,1,134,3],[134,4,134,6],[135,1,135,3],[135,4,135,6],[111,1,111,3],[111,4,111,6],[112,1,112,3],[112,4,112,6],[113,1,113,3],[113,4,113,6]]}
[]
[null,"Below is the First Aid Assessor developed by First Aid Only.   It will help a business choose the "]
[null,"right first aid products based on the business operations and size.  "]
[]
[null,"To use the tool, simply answer the questions below and then switch to the \"Output\" worksheet and "]
[null,"click the \"Re-calcuate\" button.   You may click on an individual product hyperlink to learn more "]
[null,"about a particular product.   The Output sheet may also be saved as a pdf to be emailed out."]
[]
[]
[null,"1. What Type Work Environment(s) do you have?   (Check all that Apply)"]
[null,null,"ü","Office",null,null,"Warehouse"]
[null,null,null,"Light Manufacturing",null,null,"Food Service"]
[null,null,null,"Heavy Manufacturing"]
[]
[]
[]
[null,"2. How many buildings do you have?  "]
[null,null,1]
[]
[]
[]
[null,"3. What is the total number of floors in all buildings?"]
[null,null,1]
[null,null,null,null,null,null,null,null,null,"<<BACK","NEXT>>"]
[]
[]
[null,"4. OSHA requires that employees are able to reach a first aid cabinet/kit in approximately one minute.  How many "]
[null,"first aid cabinets does your business need?   If unsure, how many first cabinets/kits do you have today?"]
[null,null,3]
[null,null,null,null,null,null,null,null,null,"<<BACK","NEXT>>"]
[]
[]
[null,"5. Would you like ALL NEW cabinets or would you like to CONVERT some of these cabinets"]
[null,"to the benefits of SmartCompliance without taking them off the wall?  To convert a cabinet, it"]
[null,"it must have 3 or more shelves that are at least 15\" wide"]
[null,null,null,"All New"]
[null,null,"ü","Convert Some"]
[null,null,null,null,null,null,null,null,null,"<<BACK","NEXT>>"]
[]
[]
[null,{"$f":"\"6. It looks like you need \"&fourA&\" First Aid Cabinets.  Which size first aid cabinets or kits do\"","v":"6. It looks like you need 3 First Aid Cabinets.  Which size first aid cabinets or kits do"}]
[null,"you need including ones you want to CONVERT?  You can base it on Persons served OR cabinet Usage (i.e. Heavy)"]
[null,"NEW CABINETS",null,"VeryHeavy.\n200+ Person","Heavy.\n100-150 Person","Medium.\n50-75 Person",null,"Light.\n25 Person"]
[null,null,"Office",null,1,null,null,1]
[null,null,"LightManufacturing"]
[null,null,"HeavyManufacturing"]
[null,null,"Warehouse"]
[null,null,"FoodService"]
[null,null,null,{"$f":"D46","v":0},{"$f":"E44+E46+E47+E48","v":1},{"$f":"F44+F45+F47+F48","v":0},null,{"$f":"H44+H45+H47+H48","v":1}]
[]
[null,"CABINET TO CONVERT",null,null,"4 or 5 Shelf\nCabinet to Convert",null,null,"3 Shelf \nCabinet to Convert","Number of Products"]
[null,null,null,null,1,null,null,null,"Needed"]
[null,null,null,null,null,null,null,null,{"$f":"SUM(D44:H44)+SUM(F45:H45)+SUM(D46:E46)+SUM(E47:H48)+SUM(E52+H52)&\" of \"&fourA&\" Needed\"","v":"3 of 3 Needed"}]
[]
[]
[]
[null,"7. Would you like to describe the locations to keep track of which cabinets…which cabinets will be "]
[null,"placed where in the building(s).  (OPTIONAL)"]
[null,null,{"$f":"REPT(C46&\"-\"&LEFT(D43,FIND(\".\",D43)-1)&\",\",D46)&REPT(C44&\"-\"&LEFT(E43,FIND(\".\",E43)-1)&\",\",E44)&REPT(C46&\"-\"&LEFT(E43,FIND(\".\",E43)-1)&\",\",E46)&REPT(C47&\"-\"&LEFT(E43,FIND(\".\",E43)-1)&\",\",E47)&REPT(C48&\"-\"&LEFT(E43,FIND(\".\",E43)-1)&\",\",E48)&REPT(C44&\"-\"&LEFT(F43,FIND(\".\",F43)-1)&\",\",F44)&REPT(C45&\"-\"&LEFT(F43,FIND(\".\",F43)-1)&\",\",F45)&REPT(C47&\"-\"&LEFT(F43,FIND(\".\",F43)-1)&\",\",F47)&REPT(C48&\"-\"&LEFT(F43,FIND(\".\",F43)-1)&\",\",F48)&REPT(C44&\"-\"&LEFT(H43,FIND(\".\",H43)-1)&\",\",H44)&REPT(C45&\"-\"&LEFT(H43,FIND(\".\",H43)-1)&\",\",H45)&REPT(C47&\"-\"&LEFT(H43,FIND(\".\",H43)-1)&\",\",H47)&REPT(C48&\"-\"&LEFT(H43,FIND(\".\",H43)-1)&\",\",H48)&REPT(\"4or5 Shelf,\",six45Shelf)&REPT(\"3 Shelf,\",six3Shelf)","v":"Office-Heavy,Office-Light,4or5 Shelf,"}]
[null,"Office-Heavy"]
[null,"HeavyManufacturing-Heavy"]
[null,"Warehouse-Heavy"]
[null,"Office-Light"]
[null,"4or5 Shelf"]
[null,"4or5 Shelf"]
[null,"4or5 Shelf"]
[null,"3 Shelf"]
[null,"3 Shelf"]
[]
[]
[]
[]
[]
[]
[]
[]
[]
[]
[]
[]
[]
[]
[]
[]
[]
[]
[]
[]
[]
[]
[]
[]
[]
[]
[]
[]
[]
[]
[]
[]
[]
[]
[]
[]
[]
[]
[]
[]
[]
[]
[]
[]
[]
[]
[]
[]
[]
[]
[]
[]
[]
[]
[]
[]
[]
[]
[]
[]
[]
[]
[]
[]
[]
[]
[]
[]
[]
[]
[]
[]
[]
[]
[]
[]
[]
[]
[]
[]
[]
[]
[]
[]
[]
[]
[]
[]
[]
[]
[]
[]
[]
[]
[null,"7. Does your company dispense medications to your employees?"]
[null,null,null,"Yes"]
[null,null,"ü","No"]
[]
[]
[]
[null,"8. Do you have any Supplemental First Aid Need Areas (Check all the Apply)"]
[null,null,"ü","Eyewash"]
[null,null,null,"Burns"]
[null,null,null,"Bleeding Control"]
[null,null,"ü","Fleet Vehicles"]
[]
[]
[null,"9. How many areas or vehicles have these Supplemental First Aid Needs in all the buildings"]
[null,"Eyewash",1]
[null,"Burns"]
[null,"Bleeding Control"]
[null,"Fleet Vehicles",1]
[]
[]
[null,"10. We can review the OSHA regulations if you'd like for different types "]
[null,"of first aid needs to help you decide on your needs"]
[null,null,null,"Link to OSHA Rules"]
[]
[]
[null,"11. Let's review your Supplemental First Aid needs.  We recommend BBP and First Responder kits for every "]
[null,"business. "]
[null,"Please fill in orange cells with numbers until you fulfill the number that's needed.  When complete, it will change to black"]
[null,null,null,"Standard","Advanced","Advanced Kits contain the following:"]
[null,null,"BBP Kit",1,1,"Extra clean-up items and easy to re-order boxes",null,null,{"$f":"SUM(D192:E192)&\" of \"&ROUNDUP(fourA/2,0)&\" Needed\"","v":"2 of 2 Needed"}]
[null,null,"First Responder Kit",null,1,"Windlass tourniquet & Burn Dressing",null,null,{"$f":"SUM(D193:E193)&\" of \"&threeA&\" Needed\"","v":"1 of 1 Needed"}]
[null,null,"Eyewash Station",1,null,"Two 32 oz. bottles vs. 16 oz. bottles (Standard)",null,null,{"$f":"SUM(D194:E194)&\" of \"&SUM(C177)&\" Needed\"","v":"1 of 1 Needed"}]
[null,null,"Burn Kit",null,null,"7 Burn Dressings vs. 3 burn dressings (Standard)",null,null,{"$f":"SUM(D195:E195)&\" of \"&SUM(C178)&\" Needed\"","v":"0 of 0 Needed"}]
[null,null,"Bleeding Control",null,null,"Hemostatic Gauze and Chest Seals",null,null,{"$f":"SUM(D196:E196)&\" of \"&SUM(C179)&\" Needed\"","v":"0 of 0 Needed"}]
[null,null,"Fleet Vehicles",null,1,"CPR face shield and medications",null,null,{"$f":"SUM(D197:E197)&\" of \"&SUM(C180)&\" Needed\"","v":"1 of 1 Needed"}]
[]
[]
[null,"We are suggesting you take advantage of  the benefits of SmartCompliance:"]
[null,"Cost Savings, Convenient Re-ordering, Staying Compliant. We will demonstrate"]
[null,"the cost savings at the end of the selection."]
[]
[]
[null,"12. Do you want to use SmartCompliance?"]
[null,null,"ü","Yes"]
[null,null,null,"No"]
[]
[]
[]
[null,"13. SmartCompliance Cost Calculator"]
[null,"# of Cabinets",null,null,{"$f":"fourA","v":3}]
[]
[null,"Current First Aid Monthly Spend",null,null,350]
[]
[null,null,null,"Initial Investment",{"$f":"(D49*468.94)+(E49*426.4)+(F49*191.78)+(H49*127.82)+(six45Shelf*149.9)+(six3Shelf*99.98)","v":704.12}]
[null,"First Year Savings",null,null,{"$f":"E218-E216+(E212*2.5*4.42)","v":3131.23}]
[null,"Estimated Annual Savings",null,null,{"$f":"((E214*3*4)-(E212*2.5*4.42*12))","v":3802.2}]
[null,"This is an ESTIMATED savings for using SmartCompliance.  Your actual savings may differ slightly."]

{"sheet":"Output","index":2,"n_rows":15,"n_cols":6,"rows_kept":15,"cut":false,"hidden":false,"merged":[[2,0,2,1],[3,0,3,1],[4,0,4,1]]}
["First Aid Assessor Recommended Product Offering"]
["Please click the \"Re-Calculate\" button to review your recommended products based on your business parameter.             Items may be added or removed, Document may be saved as a pdf. Pricing provided separately."]
["Company Name:"]
["Filled out By (name, contact information):"]
["Date:"]
[]
["Type of First Aid Need","Product Location","Kit #","Description","Qty","Link"]
["Office",0,90829,"XL Metal SC No Meds, 654 pcs.",1,"https://www.firstaidonly.com/xl-smartcompliance-general-business-first-aid-cabinet-metal.html?___store=fao"]
["Office",0,90578,"Medium Metal SC, No Meds, 94 pcs.",1,"https://www.firstaidonly.com/medium-metal-smart-compliance-cabinet-ansi-a-without-medications.html?___store=fao"]
["BBPKit","",3060,"BBP and Protective Apparel in Plastic case - 32 pcs.",1,"N/A"]
["BBPKit","","214-U/FAO","BBP Spill Clean-Up Kit with Apparel- 23 pcs",1,"https://www.firstaidonly.com/wall-mount-blood-borne-pathogen-bbp-and-bodily-fluid-spill-kit-in-plastic-carry-case-osha-24-pieces-white.html?___store=fao"]
["FirstResponderKit","",91146,"Enhanced First Responder Kit, 168 pcs. Bleed & Burn",1,"N/A"]
["EyewashStation","","24-102","Double 16 oz. Station, Screw Cap",1,"https://www.firstaidonly.com/eyewash-station-double-16-oz-screw-cap-bottle.html?___store=fao"]
["FleetVehicles","",90672,"25-person Metal, ANSI A, 114 pcs., Medications",1,"https://www.firstaidonly.com/25-person-vehicle-ansi-a-first-aid-kit-metal-and-weatherproof-case.html?___store=fao"]
["Shelf",0,91131,"RetroFit Grid, ANSI B, No Meds, 218 pcs",1,"https://www.firstaidonly.com/smartcompliance-retrofit-business-without-medications-50-person-ansi-compliant.html?___store=fao"]

{"sheet":"INPUTS","index":3,"n_rows":5,"n_cols":2,"rows_kept":5,"cut":false,"hidden":true,"merged":[]}
["SmartCompliance Cabinet Size","MSRP"]
["Heavy",426.4]
["Medium",191.78]
["Light",127.82]
["Retrofit - ANSI Class B",149.9]

{"sheet":"Data","index":4,"n_rows":62,"n_cols":18,"rows_kept":62,"cut":false,"hidden":true,"merged":[]}
["SmartCompliance","Medications","Usage","# of EE","Shelf","Type of Business","Label","Kit #","Description","Qty","Link","Unit Cost","Total Cost"]
["Yes","Yes","Heavy",150,null,"Office",{"$f":"IFERROR(INDEX(Form!E$60:E$159,MATCH(tblData[[#This Row],[Type of Business]]&\"-\"&tblData[[#This Row],[Usage]],Form!B$60:B$159,0)),\"\")","v":0},90732,"XL Metal SC with Meds, 909 pcs.",{"$f":"IF(AND(INDIRECT(\"one\"&tblData[[#This Row],[Type of Business]])=\"ü\",eightA=IF(tblData[[#This Row],[Medications]]=\"Yes\",\"ü\",\"\"),thirteenA=IF(tblData[[#This Row],[SmartCompliance]]=\"Yes\",\"ü\",\"\")),INDIRECT(\"six\"&tblData[[#This Row],[Type of Business]]&tblData[[#This Row],[Usage]]),0)","v":0},"https://www.firstaidonly.com/xl-cabinet-xl-smartcompliance-cabinet.html?___store=fao",191.83,{"$f":"tblData[[#This Row],[Qty]]*tblData[[#This Row],[Unit Cost]]","v":0}]
["Yes","Yes","Medium",50,null,"Office",{"$f":"IFERROR(INDEX(Form!E$60:E$159,MATCH(tblData[[#This Row],[Type of Business]]&\"-\"&tblData[[#This Row],[Usage]],Form!B$60:B$159,0)),\"\")","v":""},"1000-FAE-0103","Large Plastic SC with Meds, 245 pcs.",{"$f":"IF(AND(INDIRECT(\"one\"&tblData[[#This Row],[Type of Business]])=\"ü\",eightA=IF(tblData[[#This Row],[Medications]]=\"Yes\",\"ü\",\"\"),thirteenA=IF(tblData[[#This Row],[SmartCompliance]]=\"Yes\",\"ü\",\"\")),INDIRECT(\"six\"&tblData[[#This Row],[Type of Business]]&tblData[[#This Row],[Usage]]),0)","v":0},"https://www.firstaidonly.com/large-smart-compliance-general-workplace-first-aid-plastic-cabinet-with-pain-relief.html?___store=fao",59.25,{"$f":"tblData[[#This Row],[Qty]]*tblData[[#This Row],[Unit Cost]]","v":0}]
["Yes","Yes","Light",25,null,"Office",{"$f":"IFERROR(INDEX(Form!E$60:E$159,MATCH(tblData[[#This Row],[Type of Business]]&\"-\"&tblData[[#This Row],[Usage]],Form!B$60:B$159,0)),\"\")","v":0},90578,"Medium Metal SC, No Meds, 94 pcs.",{"$f":"IF(AND(INDIRECT(\"one\"&tblData[[#This Row],[Type of Business]])=\"ü\",eightA=IF(tblData[[#This Row],[Medications]]=\"Yes\",\"ü\",\"\"),thirteenA=IF(tblData[[#This Row],[SmartCompliance]]=\"Yes\",\"ü\",\"\")),INDIRECT(\"six\"&tblData[[#This Row],[Type of Business]]&tblData[[#This Row],[Usage]]),0)","v":0},"https://www.firstaidonly.com/medium-metal-smart-compliance-cabinet-ansi-a-without-medications.html?___store=fao",57.51,{"$f":"tblData[[#This Row],[Qty]]*tblData[[#This Row],[Unit Cost]]","v":0}]
["Yes","Yes","Medium",50,null,"LightManufacturing",{"$f":"IFERROR(INDEX(Form!E$60:E$159,MATCH(tblData[[#This Row],[Type of Business]]&\"-\"&tblData[[#This Row],[Usage]],Form!B$60:B$159,0)),\"\")","v":""},746000,"Large Metal SC with Meds, 241 pcs.",{"$f":"IF(AND(INDIRECT(\"one\"&tblData[[#This Row],[Type of Business]])=\"ü\",eightA=IF(tblData[[#This Row],[Medications]]=\"Yes\",\"ü\",\"\"),thirteenA=IF(tblData[[#This Row],[SmartCompliance]]=\"Yes\",\"ü\",\"\")),INDIRECT(\"six\"&tblData[[#This Row],[Type of Business]]&tblData[[#This Row],[Usage]]),0)","v":0},"https://www.firstaidonly.com/large-metal-smart-compliance-first-aid-cabinet-ansi-a-compliant-with-medication.html?___store=fao",86.29,{"$f":"tblData[[#This Row],[Qty]]*tblData[[#This Row],[Unit Cost]]","v":0}]
["Yes","Yes","Light",25,null,"LightManufacturing",{"$f":"IFERROR(INDEX(Form!E$60:E$159,MATCH(tblData[[#This Row],[Type of Business]]&\"-\"&tblData[[#This Row],[Usage]],Form!B$60:B$159,0)),\"\")","v":""},90578,"Medium Metal SC, No Meds, 94 pcs.",{"$f":"IF(AND(INDIRECT(\"one\"&tblData[[#This Row],[Type of Business]])=\"ü\",eightA=IF(tblData[[#This Row],[Medications]]=\"Yes\",\"ü\",\"\"),thirteenA=IF(tblData[[#This Row],[SmartCompliance]]=\"Yes\",\"ü\",\"\")),INDIRECT(\"six\"&tblData[[#This Row],[Type of Business]]&tblData[[#This Row],[Usage]]),0)","v":0},"https://www.firstaidonly.com/medium-metal-smart-compliance-cabinet-ansi-a-without-medications.html?___store=fao",57.51,{"$f":"tblData[[#This Row],[Qty]]*tblData[[#This Row],[Unit Cost]]","v":0}]
["Yes","Yes","VeryHeavy",200,null,"HeavyManufacturing",{"$f":"IFERROR(INDEX(Form!E$60:E$159,MATCH(tblData[[#This Row],[Type of Business]]&\"-\"&tblData[[#This Row],[Usage]],Form!B$60:B$159,0)),\"\")","v":""},90832,"XXL Metal SC with Meds, 1643 pcs.",{"$f":"IF(AND(INDIRECT(\"one\"&tblData[[#This Row],[Type of Business]])=\"ü\",eightA=IF(tblData[[#This Row],[Medications]]=\"Yes\",\"ü\",\"\"),thirteenA=IF(tblData[[#This Row],[SmartCompliance]]=\"Yes\",\"ü\",\"\")),INDIRECT(\"six\"&tblData[[#This Row],[Type of Business]]&tblData[[#This Row],[Usage]]),0)","v":0},"https://www.firstaidonly.com/xxl-smartcompliance-general-business-first-aid-cabinet-with-medication.html?___store=fao",191.83,{"$f":"tblData[[#This Row],[Qty]]*tblData[[#This Row],[Unit Cost]]","v":0}]
["Yes","Yes","Heavy",150,null,"HeavyManufacturing",{"$f":"IFERROR(INDEX(Form!E$60:E$159,MATCH(tblData[[#This Row],[Type of Business]]&\"-\"&tblData[[#This Row],[Usage]],Form!B$60:B$159,0)),\"\")","v":0},90732,"XL Metal SC with Meds, 909 pcs.",{"$f":"IF(AND(INDIRECT(\"one\"&tblData[[#This Row],[Type of Business]])=\"ü\",eightA=IF(tblData[[#This Row],[Medications]]=\"Yes\",\"ü\",\"\"),thirteenA=IF(tblData[[#This Row],[SmartCompliance]]=\"Yes\",\"ü\",\"\")),INDIRECT(\"six\"&tblData[[#This Row],[Type of Business]]&tblData[[#This Row],[Usage]]),0)","v":0},"https://www.firstaidonly.com/xl-cabinet-xl-smartcompliance-cabinet.html?___store=fao",191.83,{"$f":"tblData[[#This Row],[Qty]]*tblData[[#This Row],[Unit Cost]]","v":0}]
["Yes","Yes","Heavy",150,null,"Warehouse",{"$f":"IFERROR(INDEX(Form!E$60:E$159,MATCH(tblData[[#This Row],[Type of Business]]&\"-\"&tblData[[#This Row],[Usage]],Form!B$60:B$159,0)),\"\")","v":0},90732,"XL Metal SC with Meds, 909 pcs.",{"$f":"IF(AND(INDIRECT(\"one\"&tblData[[#This Row],[Type of Business]])=\"ü\",eightA=IF(tblData[[#This Row],[Medications]]=\"Yes\",\"ü\",\"\"),thirteenA=IF(tblData[[#This Row],[SmartCompliance]]=\"Yes\",\"ü\",\"\")),INDIRECT(\"six\"&tblData[[#This Row],[Type of Business]]&tblData[[#This Row],[Usage]]),0)","v":0},"https://www.firstaidonly.com/xl-cabinet-xl-smartcompliance-cabinet.html?___store=fao",191.83,{"$f":"tblData[[#This Row],[Qty]]*tblData[[#This Row],[Unit Cost]]","v":0}]
["Yes","Yes","Medium",50,null,"Warehouse",{"$f":"IFERROR(INDEX(Form!E$60:E$159,MATCH(tblData[[#This Row],[Type of Business]]&\"-\"&tblData[[#This Row],[Usage]],Form!B$60:B$159,0)),\"\")","v":""},746000,"Large Metal SC with Meds, 241 pcs.",{"$f":"IF(AND(INDIRECT(\"one\"&tblData[[#This Row],[Type of Business]])=\"ü\",eightA=IF(tblData[[#This Row],[Medications]]=\"Yes\",\"ü\",\"\"),thirteenA=IF(tblData[[#This Row],[SmartCompliance]]=\"Yes\",\"ü\",\"\")),INDIRECT(\"six\"&tblData[[#This Row],[Type of Business]]&tblData[[#This Row],[Usage]]),0)","v":0},"https://www.firstaidonly.com/large-metal-smart-compliance-first-aid-cabinet-ansi-a-compliant-with-medication.html?___store=fao",86.29,{"$f":"tblData[[#This Row],[Qty]]*tblData[[#This Row],[Unit Cost]]","v":0}]
["Yes","Yes","Light",25,null,"Warehouse",{"$f":"IFERROR(INDEX(Form!E$60:E$159,MATCH(tblData[[#This Row],[Type of Business]]&\"-\"&tblData[[#This Row],[Usage]],Form!B$60:B$159,0)),\"\")","v":""},90578,"Medium Metal SC, No Meds, 94 pcs.",{"$f":"IF(AND(INDIRECT(\"one\"&tblData[[#This Row],[Type of Business]])=\"ü\",eightA=IF(tblData[[#This Row],[Medications]]=\"Yes\",\"ü\",\"\"),thirteenA=IF(tblData[[#This Row],[SmartCompliance]]=\"Yes\",\"ü\",\"\")),INDIRECT(\"six\"&tblData[[#This Row],[Type of Business]]&tblData[[#This Row],[Usage]]),0)","v":0},"https://www.firstaidonly.com/medium-metal-smart-compliance-cabinet-ansi-a-without-medications.html?___store=fao",57.51,{"$f":"tblData[[#This Row],[Qty]]*tblData[[#This Row],[Unit Cost]]","v":0}]
["Yes","Yes","Heavy",150,null,"FoodService",{"$f":"IFERROR(INDEX(Form!E$60:E$159,MATCH(tblData[[#This Row],[Type of Business]]&\"-\"&tblData[[#This Row],[Usage]],Form!B$60:B$159,0)),\"\")","v":""},90830,"XL Metal SC with Meds, 937 pcs.",{"$f":"IF(AND(INDIRECT(\"one\"&tblData[[#This Row],[Type of Business]])=\"ü\",eightA=IF(tblData[[#This Row],[Medications]]=\"Yes\",\"ü\",\"\"),thirteenA=IF(tblData[[#This Row],[SmartCompliance]]=\"Yes\",\"ü\",\"\")),INDIRECT(\"six\"&tblData[[#This Row],[Type of Business]]&tblData[[#This Row],[Usage]]),0)","v":0},"https://www.firstaidonly.com/xl-smartcompliance-food-service-cabinet-with-medications-metal.html?___store=fao",191.83,{"$f":"tblData[[#This Row],[Qty]]*tblData[[#This Row],[Unit Cost]]","v":0}]
["Yes","Yes","Medium",50,null,"FoodService",{"$f":"IFERROR(INDEX(Form!E$60:E$159,MATCH(tblData[[#This Row],[Type of Business]]&\"-\"&tblData[[#This Row],[Usage]],Form!B$60:B$159,0)),\"\")","v":""},746005,"Large Metal SC with Meds, 289 pcs.",{"$f":"IF(AND(INDIRECT(\"one\"&tblData[[#This Row],[Type of Business]])=\"ü\",eightA=IF(tblData[[#This Row],[Medications]]=\"Yes\",\"ü\",\"\"),thirteenA=IF(tblData[[#This Row],[SmartCompliance]]=\"Yes\",\"ü\",\"\")),INDIRECT(\"six\"&tblData[[#This Row],[Type of Business]]&tblData[[#This Row],[Usage]]),0)","v":0},"https://www.firstaidonly.com/large-metal-smart-compliance-food-service-first-aid-cabinet-ansi-a-compliant-with-medication.html?___store=fao",86.29,{"$f":"tblData[[#This Row],[Qty]]*tblData[[#This Row],[Unit Cost]]","v":0}]
["Yes","Yes","Light",25,null,"FoodService",{"$f":"IFERROR(INDEX(Form!E$60:E$159,MATCH(tblData[[#This Row],[Type of Business]]&\"-\"&tblData[[#This Row],[Usage]],Form!B$60:B$159,0)),\"\")","v":""},90578,"Medium Metal SC, No Meds, 94 pcs.",{"$f":"IF(AND(INDIRECT(\"one\"&tblData[[#This Row],[Type of Business]])=\"ü\",eightA=IF(tblData[[#This Row],[Medications]]=\"Yes\",\"ü\",\"\"),thirteenA=IF(tblData[[#This Row],[SmartCompliance]]=\"Yes\",\"ü\",\"\")),INDIRECT(\"six\"&tblData[[#This Row],[Type of Business]]&tblData[[#This Row],[Usage]]),0)","v":0},"https://www.firstaidonly.com/medium-metal-smart-compliance-cabinet-ansi-a-without-medications.html?___store=fao",57.51,{"$f":"tblData[[#This Row],[Qty]]*tblData[[#This Row],[Unit Cost]]","v":0}]
["Yes","No","Heavy",150,null,"Office",{"$f":"IFERROR(INDEX(Form!E$60:E$159,MATCH(tblData[[#This Row],[Type of Business]]&\"-\"&tblData[[#This Row],[Usage]],Form!B$60:B$159,0)),\"\")","v":0},90829,"XL Metal SC No Meds, 654 pcs.",{"$f":"IF(AND(INDIRECT(\"one\"&tblData[[#This Row],[Type of Business]])=\"ü\",eightA=IF(tblData[[#This Row],[Medications]]=\"Yes\",\"ü\",\"\"),thirteenA=IF(tblData[[#This Row],[SmartCompliance]]=\"Yes\",\"ü\",\"\")),INDIRECT(\"six\"&tblData[[#This Row],[Type of Business]]&tblData[[#This Row],[Usage]]),0)","v":1},"https://www.firstaidonly.com/xl-smartcompliance-general-business-first-aid-cabinet-metal.html?___store=fao",191.83,{"$f":"tblData[[#This Row],[Qty]]*tblData[[#This Row],[Unit Cost]]","v":191.83}]
["Yes","No","Medium",50,null,"Office",{"$f":"IFERROR(INDEX(Form!E$60:E$159,MATCH(tblData[[#This Row],[Type of Business]]&\"-\"&tblData[[#This Row],[Usage]],Form!B$60:B$159,0)),\"\")","v":""},"1001-FAE-0103","Large Plastic SC No Meds, 206 pcs.",{"$f":"IF(AND(INDIRECT(\"one\"&tblData[[#This Row],[Type of Business]])=\"ü\",eightA=IF(tblData[[#This Row],[Medications]]=\"Yes\",\"ü\",\"\"),thirteenA=IF(tblData[[#This Row],[SmartCompliance]]=\"Yes\",\"ü\",\"\")),INDIRECT(\"six\"&tblData[[#This Row],[Type of Business]]&tblData[[#This Row],[Usage]]),0)","v":0},"https://www.firstaidonly.com/large-smart-compliance-general-workplace-first-aid-plastic-cabinet-with-pain-relief.html?___store=fao",59.25,{"$f":"tblData[[#This Row],[Qty]]*tblData[[#This Row],[Unit Cost]]","v":0}]
["Yes","No","Light",25,null,"Office",{"$f":"IFERROR(INDEX(Form!E$60:E$159,MATCH(tblData[[#This Row],[Type of Business]]&\"-\"&tblData[[#This Row],[Usage]],Form!B$60:B$159,0)),\"\")","v":0},90578,"Medium Metal SC, No Meds, 94 pcs.",{"$f":"IF(AND(INDIRECT(\"one\"&tblData[[#This Row],[Type of Business]])=\"ü\",eightA=IF(tblData[[#This Row],[Medications]]=\"Yes\",\"ü\",\"\"),thirteenA=IF(tblData[[#This Row],[SmartCompliance]]=\"Yes\",\"ü\",\"\")),INDIRECT(\"six\"&tblData[[#This Row],[Type of Business]]&tblData[[#This Row],[Usage]]),0)","v":1},"https://www.firstaidonly.com/medium-metal-smart-compliance-cabinet-ansi-a-without-medications.html?___store=fao",57.51,{"$f":"tblData[[#This Row],[Qty]]*tblData[[#This Row],[Unit Cost]]","v":57.51}]
["Yes","No","Medium",50,null,"LightManufacturing",{"$f":"IFERROR(INDEX(Form!E$60:E$159,MATCH(tblData[[#This Row],[Type of Business]]&\"-\"&tblData[[#This Row],[Usage]],Form!B$60:B$159,0)),\"\")","v":""},746004,"Large Metal SC No Meds, 202 pcs.",{"$f":"IF(AND(INDIRECT(\"one\"&tblData[[#This Row],[Type of Business]])=\"ü\",eightA=IF(tblData[[#This Row],[Medications]]=\"Yes\",\"ü\",\"\"),thirteenA=IF(tblData[[#This Row],[SmartCompliance]]=\"Yes\",\"ü\",\"\")),INDIRECT(\"six\"&tblData[[#This Row],[Type of Business]]&tblData[[#This Row],[Usage]]),0)","v":0},"https://www.firstaidonly.com/large-metal-smart-compliance-first-aid-cabinet-ansi-a-compliant-without-medications.html?___store=fao",86.29,{"$f":"tblData[[#This Row],[Qty]]*tblData[[#This Row],[Unit Cost]]","v":0}]
["Yes","No","Light",25,null,"LightManufacturing",{"$f":"IFERROR(INDEX(Form!E$60:E$159,MATCH(tblData[[#This Row],[Type of Business]]&\"-\"&tblData[[#This Row],[Usage]],Form!B$60:B$159,0)),\"\")","v":""},90578,"Medium Metal SC, No Meds, 94 pcs.",{"$f":"IF(AND(INDIRECT(\"one\"&tblData[[#This Row],[Type of Business]])=\"ü\",eightA=IF(tblData[[#This Row],[Medications]]=\"Yes\",\"ü\",\"\"),thirteenA=IF(tblData[[#This Row],[SmartCompliance]]=\"Yes\",\"ü\",\"\")),INDIRECT(\"six\"&tblData[[#This Row],[Type of Business]]&tblData[[#This Row],[Usage]]),0)","v":0},"https://www.firstaidonly.com/medium-metal-smart-compliance-cabinet-ansi-a-without-medications.html?___store=fao",57.51,{"$f":"tblData[[#This Row],[Qty]]*tblData[[#This Row],[Unit Cost]]","v":0}]
["Yes","No","VeryHeavy",200,null,"HeavyManufacturing",{"$f":"IFERROR(INDEX(Form!E$60:E$159,MATCH(tblData[[#This Row],[Type of Business]]&\"-\"&tblData[[#This Row],[Usage]],Form!B$60:B$159,0)),\"\")","v":""},90833,"XXL Metal SC No Meds, 728 pcs.",{"$f":"IF(AND(INDIRECT(\"one\"&tblData[[#This Row],[Type of Business]])=\"ü\",eightA=IF(tblData[[#This Row],[Medications]]=\"Yes\",\"ü\",\"\"),thirteenA=IF(tblData[[#This Row],[SmartCompliance]]=\"Yes\",\"ü\",\"\")),INDIRECT(\"six\"&tblData[[#This Row],[Type of Business]]&tblData[[#This Row],[Usage]]),0)","v":0},"https://www.firstaidonly.com/xxl-smartcompliance-general-business-first-aid-cabinet-without-medication.html?___store=fao",191.83,{"$f":"tblData[[#This Row],[Qty]]*tblData[[#This Row],[Unit Cost]]","v":0}]
["Yes","No","Heavy",150,null,"HeavyManufacturing",{"$f":"IFERROR(INDEX(Form!E$60:E$159,MATCH(tblData[[#This Row],[Type of Business]]&\"-\"&tblData[[#This Row],[Usage]],Form!B$60:B$159,0)),\"\")","v":0},90829,"XL Metal SC No Meds, 654 pcs.",{"$f":"IF(AND(INDIRECT(\"one\"&tblData[[#This Row],[Type of Business]])=\"ü\",eightA=IF(tblData[[#This Row],[Medications]]=\"Yes\",\"ü\",\"\"),thirteenA=IF(tblData[[#This Row],[SmartCompliance]]=\"Yes\",\"ü\",\"\")),INDIRECT(\"six\"&tblData[[#This Row],[Type of Business]]&tblData[[#This Row],[Usage]]),0)","v":0},"https://www.firstaidonly.com/xl-smartcompliance-general-business-first-aid-cabinet-metal.html?___store=fao",191.83,{"$f":"tblData[[#This Row],[Qty]]*tblData[[#This Row],[Unit Cost]]","v":0}]
["Yes","No","Heavy",150,null,"Warehouse",{"$f":"IFERROR(INDEX(Form!E$60:E$159,MATCH(tblData[[#This Row],[Type of Business]]&\"-\"&tblData[[#This Row],[Usage]],Form!B$60:B$159,0)),\"\")","v":0},90829,"XL Metal SC No Meds, 654 pcs.",{"$f":"IF(AND(INDIRECT(\"one\"&tblData[[#This Row],[Type of Business]])=\"ü\",eightA=IF(tblData[[#This Row],[Medications]]=\"Yes\",\"ü\",\"\"),thirteenA=IF(tblData[[#This Row],[SmartCompliance]]=\"Yes\",\"ü\",\"\")),INDIRECT(\"six\"&tblData[[#This Row],[Type of Business]]&tblData[[#This Row],[Usage]]),0)","v":0},"https://www.firstaidonly.com/xl-smartcompliance-general-business-first-aid-cabinet-metal.html?___store=fao",191.83,{"$f":"tblData[[#This Row],[Qty]]*tblData[[#This Row],[Unit Cost]]","v":0}]
["Yes","No","Medium",50,null,"Warehouse",{"$f":"IFERROR(INDEX(Form!E$60:E$159,MATCH(tblData[[#This Row],[Type of Business]]&\"-\"&tblData[[#This Row],[Usage]],Form!B$60:B$159,0)),\"\")","v":""},746004,"Large Metal SC No Meds, 202 pcs.",{"$f":"IF(AND(INDIRECT(\"one\"&tblData[[#This Row],[Type of Business]])=\"ü\",eightA=IF(tblData[[#This Row],[Medications]]=\"Yes\",\"ü\",\"\"),thirteenA=IF(tblData[[#This Row],[SmartCompliance]]=\"Yes\",\"ü\",\"\")),INDIRECT(\"six\"&tblData[[#This Row],[Type of Business]]&tblData[[#This Row],[Usage]]),0)","v":0},"https://www.firstaidonly.com/large-metal-smart-compliance-first-aid-cabinet-ansi-a-compliant-without-medications.html?___store=fao",86.29,{"$f":"tblData[[#This Row],[Qty]]*tblData[[#This Row],[Unit Cost]]","v":0}]
["Yes","No","Light",25,null,"Warehouse",{"$f":"IFERROR(INDEX(Form!E$60:E$159,MATCH(tblData[[#This Row],[Type of Business]]&\"-\"&tblData[[#This Row],[Usage]],Form!B$60:B$159,0)),\"\")","v":""},90578,"Medium Metal SC, No Meds, 94 pcs.",{"$f":"IF(AND(INDIRECT(\"one\"&tblData[[#This Row],[Type of Business]])=\"ü\",eightA=IF(tblData[[#This Row],[Medications]]=\"Yes\",\"ü\",\"\"),thirteenA=IF(tblData[[#This Row],[SmartCompliance]]=\"Yes\",\"ü\",\"\")),INDIRECT(\"six\"&tblData[[#This Row],[Type of Business]]&tblData[[#This Row],[Usage]]),0)","v":0},"https://www.firstaidonly.com/medium-metal-smart-compliance-cabinet-ansi-a-without-medications.html?___store=fao",57.51,{"$f":"tblData[[#This Row],[Qty]]*tblData[[#This Row],[Unit Cost]]","v":0}]
["Yes","No","Heavy",150,null,"FoodService",{"$f":"IFERROR(INDEX(Form!E$60:E$159,MATCH(tblData[[#This Row],[Type of Business]]&\"-\"&tblData[[#This Row],[Usage]],Form!B$60:B$159,0)),\"\")","v":""},90831,"XL Metal SC No Meds Meds, 697 pcs.",{"$f":"IF(AND(INDIRECT(\"one\"&tblData[[#This Row],[Type of Business]])=\"ü\",eightA=IF(tblData[[#This Row],[Medications]]=\"Yes\",\"ü\",\"\"),thirteenA=IF(tblData[[#This Row],[SmartCompliance]]=\"Yes\",\"ü\",\"\")),INDIRECT(\"six\"&tblData[[#This Row],[Type of Business]]&tblData[[#This Row],[Usage]]),0)","v":0},"https://www.firstaidonly.com/xl-smartcompliance-food-service-cabinet-without-medications-metal.html?___store=fao",191.83,{"$f":"tblData[[#This Row],[Qty]]*tblData[[#This Row],[Unit Cost]]","v":0}]
["Yes","No","Medium",50,null,"FoodService",{"$f":"IFERROR(INDEX(Form!E$60:E$159,MATCH(tblData[[#This Row],[Type of Business]]&\"-\"&tblData[[#This Row],[Usage]],Form!B$60:B$159,0)),\"\")","v":""},746006,"Large Metal SC No Meds Meds, 260 pcs.",{"$f":"IF(AND(INDIRECT(\"one\"&tblData[[#This Row],[Type of Business]])=\"ü\",eightA=IF(tblData[[#This Row],[Medications]]=\"Yes\",\"ü\",\"\"),thirteenA=IF(tblData[[#This Row],[SmartCompliance]]=\"Yes\",\"ü\",\"\")),INDIRECT(\"six\"&tblData[[#This Row],[Type of Business]]&tblData[[#This Row],[Usage]]),0)","v":0},"https://www.firstaidonly.com/large-metal-smart-compliance-food-service-first-aid-cabinet-ansi-a-compliant-without-medication.html?___store=fao",86.29,{"$f":"tblData[[#This Row],[Qty]]*tblData[[#This Row],[Unit Cost]]","v":0}]
["Yes","No","Light",25,null,"FoodService",{"$f":"IFERROR(INDEX(Form!E$60:E$159,MATCH(tblData[[#This Row],[Type of Business]]&\"-\"&tblData[[#This Row],[Usage]],Form!B$60:B$159,0)),\"\")","v":""},90578,"Medium Metal SC, No Meds, 94 pcs.",{"$f":"IF(AND(INDIRECT(\"one\"&tblData[[#This Row],[Type of Business]])=\"ü\",eightA=IF(tblData[[#This Row],[Medications]]=\"Yes\",\"ü\",\"\"),thirteenA=IF(tblData[[#This Row],[SmartCompliance]]=\"Yes\",\"ü\",\"\")),INDIRECT(\"six\"&tblData[[#This Row],[Type of Business]]&tblData[[#This Row],[Usage]]),0)","v":0},"https://www.firstaidonly.com/medium-metal-smart-compliance-cabinet-ansi-a-without-medications.html?___store=fao",57.51,{"$f":"tblData[[#This Row],[Qty]]*tblData[[#This Row],[Unit Cost]]","v":0}]
["No","Yes","Heavy",100,null,"Office",{"$f":"IFERROR(INDEX(Form!E$60:E$159,MATCH(tblData[[#This Row],[Type of Business]]&\"-\"&tblData[[#This Row],[Usage]],Form!B$60:B$159,0)),\"\")","v":0},90575,"3-Shelf Metal, ANSI B, 676 pcs. with Meds",{"$f":"IF(AND(INDIRECT(\"one\"&tblData[[#This Row],[Type of Business]])=\"ü\",eightA=IF(tblData[[#This Row],[Medications]]=\"Yes\",\"ü\",\"\"),thirteenA=IF(tblData[[#This Row],[SmartCompliance]]=\"Yes\",\"ü\",\"\")),INDIRECT(\"six\"&tblData[[#This Row],[Type of Business]]&tblData[[#This Row],[Usage]]),0)","v":0},"https://www.firstaidonly.com/3-shelf-first-aid-ansi-b-metal-cabinet-with-medication.html?___store=fao",0,{"$f":"tblData[[#This Row],[Qty]]*tblData[[#This Row],[Unit Cost]]","v":0}]
["No","Yes","Medium",75,null,"Office",{"$f":"IFERROR(INDEX(Form!E$60:E$159,MATCH(tblData[[#This Row],[Type of Business]]&\"-\"&tblData[[#This Row],[Usage]],Form!B$60:B$159,0)),\"\")","v":""},90572,"2-Shelf Metal ANSI A , 347 pieces with Meds",{"$f":"IF(AND(INDIRECT(\"one\"&tblData[[#This Row],[Type of Business]])=\"ü\",eightA=IF(tblData[[#This Row],[Medications]]=\"Yes\",\"ü\",\"\"),thirteenA=IF(tblData[[#This Row],[SmartCompliance]]=\"Yes\",\"ü\",\"\")),INDIRECT(\"six\"&tblData[[#This Row],[Type of Business]]&tblData[[#This Row],[Usage]]),0)","v":0},"https://www.firstaidonly.com/2-shelf-first-aid-ansi-a-metal-cabinet-with-medications.html?___store=fao",0,{"$f":"tblData[[#This Row],[Qty]]*tblData[[#This Row],[Unit Cost]]","v":0}]
["No","Yes","Light",25,null,"Office",{"$f":"IFERROR(INDEX(Form!E$60:E$159,MATCH(tblData[[#This Row],[Type of Business]]&\"-\"&tblData[[#This Row],[Usage]],Form!B$60:B$159,0)),\"\")","v":0},"223-U/FAO","25 Person Plastic Bulk, 106 pcs",{"$f":"IF(AND(INDIRECT(\"one\"&tblData[[#This Row],[Type of Business]])=\"ü\",eightA=IF(tblData[[#This Row],[Medications]]=\"Yes\",\"ü\",\"\"),thirteenA=IF(tblData[[#This Row],[SmartCompliance]]=\"Yes\",\"ü\",\"\")),INDIRECT(\"six\"&tblData[[#This Row],[Type of Business]]&tblData[[#This Row],[Usage]]),0)","v":0},"https://www.firstaidonly.com/25-person-first-aid-kit-plastic-case-with-dividers.html?___store=fao",0,{"$f":"tblData[[#This Row],[Qty]]*tblData[[#This Row],[Unit Cost]]","v":0}]
["No","Yes","Medium",75,null,"LightManufacturing",{"$f":"IFERROR(INDEX(Form!E$60:E$159,MATCH(tblData[[#This Row],[Type of Business]]&\"-\"&tblData[[#This Row],[Usage]],Form!B$60:B$159,0)),\"\")","v":""},90572,"2-Shelf Metal ANSI A , 347 pieces with Meds",{"$f":"IF(AND(INDIRECT(\"one\"&tblData[[#This Row],[Type of Business]])=\"ü\",eightA=IF(tblData[[#This Row],[Medications]]=\"Yes\",\"ü\",\"\"),thirteenA=IF(tblData[[#This Row],[SmartCompliance]]=\"Yes\",\"ü\",\"\")),INDIRECT(\"six\"&tblData[[#This Row],[Type of Business]]&tblData[[#This Row],[Usage]]),0)","v":0},"https://www.firstaidonly.com/2-shelf-first-aid-ansi-a-metal-cabinet-with-medications.html?___store=fao",0,{"$f":"tblData[[#This Row],[Qty]]*tblData[[#This Row],[Unit Cost]]","v":0},null,null,"Qty","Part #","Description "]
["No","Yes","Light",25,null,"LightManufacturing",{"$f":"IFERROR(INDEX(Form!E$60:E$159,MATCH(tblData[[#This Row],[Type of Business]]&\"-\"&tblData[[#This Row],[Usage]],Form!B$60:B$159,0)),\"\")","v":""},90563,"25 Person Plastic Bulk, 141 pcs",{"$f":"IF(AND(INDIRECT(\"one\"&tblData[[#This Row],[Type of Business]])=\"ü\",eightA=IF(tblData[[#This Row],[Medications]]=\"Yes\",\"ü\",\"\"),thirteenA=IF(tblData[[#This Row],[SmartCompliance]]=\"Yes\",\"ü\",\"\")),INDIRECT(\"six\"&tblData[[#This Row],[Type of Business]]&tblData[[#This Row],[Usage]]),0)","v":0},"https://www.firstaidonly.com/25-person-first-aid-kit-ansi-a-plastic-case-2.html?___store=fao",0,{"$f":"tblData[[#This Row],[Qty]]*tblData[[#This Row],[Unit Cost]]","v":0},null,null,1,90829,"SmartCompliance XL, 654 pcs"]
["No","Yes","VeryHeavy",200,null,"HeavyManufacturing",{"$f":"IFERROR(INDEX(Form!E$60:E$159,MATCH(tblData[[#This Row],[Type of Business]]&\"-\"&tblData[[#This Row],[Usage]],Form!B$60:B$159,0)),\"\")","v":""},90577,"5-Shelf Metal ANSI B+, with Meds, 2134 pcs.",{"$f":"IF(AND(INDIRECT(\"one\"&tblData[[#This Row],[Type of Business]])=\"ü\",eightA=IF(tblData[[#This Row],[Medications]]=\"Yes\",\"ü\",\"\"),thirteenA=IF(tblData[[#This Row],[SmartCompliance]]=\"Yes\",\"ü\",\"\")),INDIRECT(\"six\"&tblData[[#This Row],[Type of Business]]&tblData[[#This Row],[Usage]]),0)","v":0},"https://www.firstaidonly.com/5-shelf-first-aid-ansi-b-metal-cabinet-with-medication.html?___store=fao",0,{"$f":"tblData[[#This Row],[Qty]]*tblData[[#This Row],[Unit Cost]]","v":0},null,null,2,90562,"25-Person Plastic, 89 pcs."]
["No","Yes","Heavy",150,null,"HeavyManufacturing",{"$f":"IFERROR(INDEX(Form!E$60:E$159,MATCH(tblData[[#This Row],[Type of Business]]&\"-\"&tblData[[#This Row],[Usage]],Form!B$60:B$159,0)),\"\")","v":0},90576,"4-Shelf Metal ANSI B+, with Meds, 1461 pcs.",{"$f":"IF(AND(INDIRECT(\"one\"&tblData[[#This Row],[Type of Business]])=\"ü\",eightA=IF(tblData[[#This Row],[Medications]]=\"Yes\",\"ü\",\"\"),thirteenA=IF(tblData[[#This Row],[SmartCompliance]]=\"Yes\",\"ü\",\"\")),INDIRECT(\"six\"&tblData[[#This Row],[Type of Business]]&tblData[[#This Row],[Usage]]),0)","v":0},"https://www.firstaidonly.com/4-shelf-first-aid-ansi-b-metal-cabinet-with-medication.html?___store=fao",0,{"$f":"tblData[[#This Row],[Qty]]*tblData[[#This Row],[Unit Cost]]","v":0},null,null,1,3060,"Bloodborne Pathogen Kit"]
["No","Yes","Heavy",100,null,"Warehouse",{"$f":"IFERROR(INDEX(Form!E$60:E$159,MATCH(tblData[[#This Row],[Type of Business]]&\"-\"&tblData[[#This Row],[Usage]],Form!B$60:B$159,0)),\"\")","v":0},90575,"3-Shelf Metal, ANSI B, 676 pcs. with Meds",{"$f":"IF(AND(INDIRECT(\"one\"&tblData[[#This Row],[Type of Business]])=\"ü\",eightA=IF(tblData[[#This Row],[Medications]]=\"Yes\",\"ü\",\"\"),thirteenA=IF(tblData[[#This Row],[SmartCompliance]]=\"Yes\",\"ü\",\"\")),INDIRECT(\"six\"&tblData[[#This Row],[Type of Business]]&tblData[[#This Row],[Usage]]),0)","v":0},"https://www.firstaidonly.com/3-shelf-first-aid-ansi-b-metal-cabinet-with-medication.html?___store=fao",0,{"$f":"tblData[[#This Row],[Qty]]*tblData[[#This Row],[Unit Cost]]","v":0},null,null,2,"24-102","Eyewash Station, 16 oz. bottles"]
["No","Yes","Medium",75,null,"Warehouse",{"$f":"IFERROR(INDEX(Form!E$60:E$159,MATCH(tblData[[#This Row],[Type of Business]]&\"-\"&tblData[[#This Row],[Usage]],Form!B$60:B$159,0)),\"\")","v":""},90572,"2-Shelf Metal ANSI A , 347 pieces with Meds",{"$f":"IF(AND(INDIRECT(\"one\"&tblData[[#This Row],[Type of Business]])=\"ü\",eightA=IF(tblData[[#This Row],[Medications]]=\"Yes\",\"ü\",\"\"),thirteenA=IF(tblData[[#This Row],[SmartCompliance]]=\"Yes\",\"ü\",\"\")),INDIRECT(\"six\"&tblData[[#This Row],[Type of Business]]&tblData[[#This Row],[Usage]]),0)","v":0},"https://www.firstaidonly.com/2-shelf-first-aid-ansi-a-metal-cabinet-with-medications.html?___store=fao",0,{"$f":"tblData[[#This Row],[Qty]]*tblData[[#This Row],[Unit Cost]]","v":0},null,null,2,91150,"Fleet Vehicle Kits, 89 pcs"]
["No","Yes","Light",25,null,"Warehouse",{"$f":"IFERROR(INDEX(Form!E$60:E$159,MATCH(tblData[[#This Row],[Type of Business]]&\"-\"&tblData[[#This Row],[Usage]],Form!B$60:B$159,0)),\"\")","v":""},"224-U/FAO","25-Person Metal, Bulk, 106 pcs.",{"$f":"IF(AND(INDIRECT(\"one\"&tblData[[#This Row],[Type of Business]])=\"ü\",eightA=IF(tblData[[#This Row],[Medications]]=\"Yes\",\"ü\",\"\"),thirteenA=IF(tblData[[#This Row],[SmartCompliance]]=\"Yes\",\"ü\",\"\")),INDIRECT(\"six\"&tblData[[#This Row],[Type of Business]]&tblData[[#This Row],[Usage]]),0)","v":0},"https://www.firstaidonly.com/25-person-first-aid-kit-metal-case.html?___store=fao",0,{"$f":"tblData[[#This Row],[Qty]]*tblData[[#This Row],[Unit Cost]]","v":0}]
["No","No","Heavy",100,null,"Office",{"$f":"IFERROR(INDEX(Form!E$60:E$159,MATCH(tblData[[#This Row],[Type of Business]]&\"-\"&tblData[[#This Row],[Usage]],Form!B$60:B$159,0)),\"\")","v":0},90790,"3-Shelf Metal, ANSI B, 676 pcs. No Meds",{"$f":"IF(AND(INDIRECT(\"one\"&tblData[[#This Row],[Type of Business]])=\"ü\",eightA=IF(tblData[[#This Row],[Medications]]=\"Yes\",\"ü\",\"\"),thirteenA=IF(tblData[[#This Row],[SmartCompliance]]=\"Yes\",\"ü\",\"\")),INDIRECT(\"six\"&tblData[[#This Row],[Type of Business]]&tblData[[#This Row],[Usage]]),0)","v":0},"https://www.firstaidonly.com/3-shelf-first-aid-ansi-b-first-aid-metal-cabinet-without-medications.html?___store=fao",0,{"$f":"tblData[[#This Row],[Qty]]*tblData[[#This Row],[Unit Cost]]","v":0}]
["No","No","Medium",75,null,"Office",{"$f":"IFERROR(INDEX(Form!E$60:E$159,MATCH(tblData[[#This Row],[Type of Business]]&\"-\"&tblData[[#This Row],[Usage]],Form!B$60:B$159,0)),\"\")","v":""},90603,"2-Shelf Metal ANSI B+, 467 pieces No Meds",{"$f":"IF(AND(INDIRECT(\"one\"&tblData[[#This Row],[Type of Business]])=\"ü\",eightA=IF(tblData[[#This Row],[Medications]]=\"Yes\",\"ü\",\"\"),thirteenA=IF(tblData[[#This Row],[SmartCompliance]]=\"Yes\",\"ü\",\"\")),INDIRECT(\"six\"&tblData[[#This Row],[Type of Business]]&tblData[[#This Row],[Usage]]),0)","v":0},"https://www.firstaidonly.com/2-shelf-first-aid-ansi-b-metal-cabinet.html?___store=fao",0,{"$f":"tblData[[#This Row],[Qty]]*tblData[[#This Row],[Unit Cost]]","v":0}]
["No","No","Light",25,null,"Office",{"$f":"IFERROR(INDEX(Form!E$60:E$159,MATCH(tblData[[#This Row],[Type of Business]]&\"-\"&tblData[[#This Row],[Usage]],Form!B$60:B$159,0)),\"\")","v":0},90562,"25 Person Plastic Bulk, 89 pcs, No Meds",{"$f":"IF(AND(INDIRECT(\"one\"&tblData[[#This Row],[Type of Business]])=\"ü\",eightA=IF(tblData[[#This Row],[Medications]]=\"Yes\",\"ü\",\"\"),thirteenA=IF(tblData[[#This Row],[SmartCompliance]]=\"Yes\",\"ü\",\"\")),INDIRECT(\"six\"&tblData[[#This Row],[Type of Business]]&tblData[[#This Row],[Usage]]),0)","v":0},"https://www.firstaidonly.com/25-person-first-aid-kit-ansi-a-plastic-case.html?___store=fao",0,{"$f":"tblData[[#This Row],[Qty]]*tblData[[#This Row],[Unit Cost]]","v":0}]
["No","No","Medium",75,null,"LightManufacturing",{"$f":"IFERROR(INDEX(Form!E$60:E$159,MATCH(tblData[[#This Row],[Type of Business]]&\"-\"&tblData[[#This Row],[Usage]],Form!B$60:B$159,0)),\"\")","v":""},90603,"2-Shelf Metal ANSI B+, 467 pieces No Meds",{"$f":"IF(AND(INDIRECT(\"one\"&tblData[[#This Row],[Type of Business]])=\"ü\",eightA=IF(tblData[[#This Row],[Medications]]=\"Yes\",\"ü\",\"\"),thirteenA=IF(tblData[[#This Row],[SmartCompliance]]=\"Yes\",\"ü\",\"\")),INDIRECT(\"six\"&tblData[[#This Row],[Type of Business]]&tblData[[#This Row],[Usage]]),0)","v":0},"https://www.firstaidonly.com/2-shelf-first-aid-ansi-b-metal-cabinet.html?___store=fao",0,{"$f":"tblData[[#This Row],[Qty]]*tblData[[#This Row],[Unit Cost]]","v":0}]
["No","No","Light",25,null,"LightManufacturing",{"$f":"IFERROR(INDEX(Form!E$60:E$159,MATCH(tblData[[#This Row],[Type of Business]]&\"-\"&tblData[[#This Row],[Usage]],Form!B$60:B$159,0)),\"\")","v":""},90562,"25 Person Plastic Bulk, 89 pcs",{"$f":"IF(AND(INDIRECT(\"one\"&tblData[[#This Row],[Type of Business]])=\"ü\",eightA=IF(tblData[[#This Row],[Medications]]=\"Yes\",\"ü\",\"\"),thirteenA=IF(tblData[[#This Row],[SmartCompliance]]=\"Yes\",\"ü\",\"\")),INDIRECT(\"six\"&tblData[[#This Row],[Type of Business]]&tblData[[#This Row],[Usage]]),0)","v":0},"https://www.firstaidonly.com/25-person-first-aid-kit-ansi-a-plastic-case.html?___store=fao",0,{"$f":"tblData[[#This Row],[Qty]]*tblData[[#This Row],[Unit Cost]]","v":0}]
["No","No","VeryHeavy",200,null,"HeavyManufacturing",{"$f":"IFERROR(INDEX(Form!E$60:E$159,MATCH(tblData[[#This Row],[Type of Business]]&\"-\"&tblData[[#This Row],[Usage]],Form!B$60:B$159,0)),\"\")","v":""},90577,"5-Shelf Metal ANSI B+, WITH  Meds, 2134 pcs.",{"$f":"IF(AND(INDIRECT(\"one\"&tblData[[#This Row],[Type of Business]])=\"ü\",eightA=IF(tblData[[#This Row],[Medications]]=\"Yes\",\"ü\",\"\"),thirteenA=IF(tblData[[#This Row],[SmartCompliance]]=\"Yes\",\"ü\",\"\")),INDIRECT(\"six\"&tblData[[#This Row],[Type of Business]]&tblData[[#This Row],[Usage]]),0)","v":0},"https://www.firstaidonly.com/5-shelf-first-aid-ansi-b-metal-cabinet-with-medication.html?___store=fao",0,{"$f":"tblData[[#This Row],[Qty]]*tblData[[#This Row],[Unit Cost]]","v":0}]
["No","No","Heavy",150,null,"HeavyManufacturing",{"$f":"IFERROR(INDEX(Form!E$60:E$159,MATCH(tblData[[#This Row],[Type of Business]]&\"-\"&tblData[[#This Row],[Usage]],Form!B$60:B$159,0)),\"\")","v":0},90576,"4-Shelf Metal ANSI B+, WITH Meds, 1461 pcs.",{"$f":"IF(AND(INDIRECT(\"one\"&tblData[[#This Row],[Type of Business]])=\"ü\",eightA=IF(tblData[[#This Row],[Medications]]=\"Yes\",\"ü\",\"\"),thirteenA=IF(tblData[[#This Row],[SmartCompliance]]=\"Yes\",\"ü\",\"\")),INDIRECT(\"six\"&tblData[[#This Row],[Type of Business]]&tblData[[#This Row],[Usage]]),0)","v":0},"https://www.firstaidonly.com/4-shelf-first-aid-ansi-b-metal-cabinet-with-medication.html?___store=fao",0,{"$f":"tblData[[#This Row],[Qty]]*tblData[[#This Row],[Unit Cost]]","v":0}]
["No","No","Heavy",100,null,"Warehouse",{"$f":"IFERROR(INDEX(Form!E$60:E$159,MATCH(tblData[[#This Row],[Type of Business]]&\"-\"&tblData[[#This Row],[Usage]],Form!B$60:B$159,0)),\"\")","v":0},90790,"3-Shelf Metal, ANSI B, 676 pcs. No Meds",{"$f":"IF(AND(INDIRECT(\"one\"&tblData[[#This Row],[Type of Business]])=\"ü\",eightA=IF(tblData[[#This Row],[Medications]]=\"Yes\",\"ü\",\"\"),thirteenA=IF(tblData[[#This Row],[SmartCompliance]]=\"Yes\",\"ü\",\"\")),INDIRECT(\"six\"&tblData[[#This Row],[Type of Business]]&tblData[[#This Row],[Usage]]),0)","v":0},"https://www.firstaidonly.com/3-shelf-first-aid-ansi-b-first-aid-metal-cabinet-without-medications.html?___store=fao",0,{"$f":"tblData[[#This Row],[Qty]]*tblData[[#This Row],[Unit Cost]]","v":0}]
["No","No","Medium",75,null,"Warehouse",{"$f":"IFERROR(INDEX(Form!E$60:E$159,MATCH(tblData[[#This Row],[Type of Business]]&\"-\"&tblData[[#This Row],[Usage]],Form!B$60:B$159,0)),\"\")","v":""},90603,"2-Shelf Metal ANSI B+, 467 pieces No Meds",{"$f":"IF(AND(INDIRECT(\"one\"&tblData[[#This Row],[Type of Business]])=\"ü\",eightA=IF(tblData[[#This Row],[Medications]]=\"Yes\",\"ü\",\"\"),thirteenA=IF(tblData[[#This Row],[SmartCompliance]]=\"Yes\",\"ü\",\"\")),INDIRECT(\"six\"&tblData[[#This Row],[Type of Business]]&tblData[[#This Row],[Usage]]),0)","v":0},"https://www.firstaidonly.com/2-shelf-first-aid-ansi-b-metal-cabinet.html?___store=fao",0,{"$f":"tblData[[#This Row],[Qty]]*tblData[[#This Row],[Unit Cost]]","v":0}]
["No","No","Light",25,null,"Warehouse",{"$f":"IFERROR(INDEX(Form!E$60:E$159,MATCH(tblData[[#This Row],[Type of Business]]&\"-\"&tblData[[#This Row],[Usage]],Form!B$60:B$159,0)),\"\")","v":""},90560,"25 Person Metal Bulk, 89 pcs, No Meds",{"$f":"IF(AND(INDIRECT(\"one\"&tblData[[#This Row],[Type of Business]])=\"ü\",eightA=IF(tblData[[#This Row],[Medications]]=\"Yes\",\"ü\",\"\"),thirteenA=IF(tblData[[#This Row],[SmartCompliance]]=\"Yes\",\"ü\",\"\")),INDIRECT(\"six\"&tblData[[#This Row],[Type of Business]]&tblData[[#This Row],[Usage]]),0)","v":0},"https://www.firstaidonly.com/25-person-first-aid-kit-ansi-a-metal-case.html?___store=fao",0,{"$f":"tblData[[#This Row],[Qty]]*tblData[[#This Row],[Unit Cost]]","v":0}]
[null,null,"Advanced",null,null,"BBPKit",{"$f":"IFERROR(INDEX(Form!E$60:E$159,MATCH(tblData[[#This Row],[Type of Business]]&\"-\"&tblData[[#This Row],[Usage]],Form!B$60:B$159,0)),\"\")","v":""},3060,"BBP and Protective Apparel in Plastic case - 32 pcs.",{"$f":"INDIRECT(tblData[[#This Row],[Type of Business]]&tblData[[#This Row],[Usage]])","v":1},"N/A",0,{"$f":"tblData[[#This Row],[Qty]]*tblData[[#This Row],[Unit Cost]]","v":0}]
[null,null,"Basic",null,null,"BBPKit",{"$f":"IFERROR(INDEX(Form!E$60:E$159,MATCH(tblData[[#This Row],[Type of Business]]&\"-\"&tblData[[#This Row],[Usage]],Form!B$60:B$159,0)),\"\")","v":""},"214-U/FAO","BBP Spill Clean-Up Kit with Apparel- 23 pcs",{"$f":"INDIRECT(tblData[[#This Row],[Type of Business]]&tblData[[#This Row],[Usage]])","v":1},"https://www.firstaidonly.com/wall-mount-blood-borne-pathogen-bbp-and-bodily-fluid-spill-kit-in-plastic-carry-case-osha-24-pieces-white.html?___store=fao",0,{"$f":"tblData[[#This Row],[Qty]]*tblData[[#This Row],[Unit Cost]]","v":0}]
[null,null,"Advanced",null,null,"FirstResponderKit",{"$f":"IFERROR(INDEX(Form!E$60:E$159,MATCH(tblData[[#This Row],[Type of Business]]&\"-\"&tblData[[#This Row],[Usage]],Form!B$60:B$159,0)),\"\")","v":""},91146,"Enhanced First Responder Kit, 168 pcs. Bleed & Burn",{"$f":"INDIRECT(tblData[[#This Row],[Type of Business]]&tblData[[#This Row],[Usage]])","v":1},"N/A",0,{"$f":"tblData[[#This Row],[Qty]]*tblData[[#This Row],[Unit Cost]]","v":0}]
[null,null,"Basic",null,null,"FirstResponderKit",{"$f":"IFERROR(INDEX(Form!E$60:E$159,MATCH(tblData[[#This Row],[Type of Business]]&\"-\"&tblData[[#This Row],[Usage]],Form!B$60:B$159,0)),\"\")","v":""},"520-FR","Large First Responder Bag, 158 pcs.",{"$f":"INDIRECT(tblData[[#This Row],[Type of Business]]&tblData[[#This Row],[Usage]])","v":0},"https://www.firstaidonly.com/first-responder-kit-large-158-piece-bag.html?___store=fao",0,{"$f":"tblData[[#This Row],[Qty]]*tblData[[#This Row],[Unit Cost]]","v":0}]
[null,null,"Advanced",null,null,"EyewashStation",{"$f":"IFERROR(INDEX(Form!E$60:E$159,MATCH(tblData[[#This Row],[Type of Business]]&\"-\"&tblData[[#This Row],[Usage]],Form!B$60:B$159,0)),\"\")","v":""},"24-300","Double 32 oz. Station, Screw Cap",{"$f":"INDIRECT(tblData[[#This Row],[Type of Business]]&tblData[[#This Row],[Usage]])","v":0},"https://www.firstaidonly.com/eyewash-station-double-32-oz-screw-cap-bottle.html?___store=fao",0,{"$f":"tblData[[#This Row],[Qty]]*tblData[[#This Row],[Unit Cost]]","v":0}]
[null,null,"Basic",null,null,"EyewashStation",{"$f":"IFERROR(INDEX(Form!E$60:E$159,MATCH(tblData[[#This Row],[Type of Business]]&\"-\"&tblData[[#This Row],[Usage]],Form!B$60:B$159,0)),\"\")","v":""},"24-102","Double 16 oz. Station, Screw Cap",{"$f":"INDIRECT(tblData[[#This Row],[Type of Business]]&tblData[[#This Row],[Usage]])","v":1},"https://www.firstaidonly.com/eyewash-station-double-16-oz-screw-cap-bottle.html?___store=fao",0,{"$f":"tblData[[#This Row],[Qty]]*tblData[[#This Row],[Unit Cost]]","v":0}]
[null,null,"Advanced",null,null,"BurnKit",{"$f":"IFERROR(INDEX(Form!E$60:E$159,MATCH(tblData[[#This Row],[Type of Business]]&\"-\"&tblData[[#This Row],[Usage]],Form!B$60:B$159,0)),\"\")","v":""},36003,"WaterJel Large Burn Kit, 12 pcs.",{"$f":"INDIRECT(tblData[[#This Row],[Type of Business]]&tblData[[#This Row],[Usage]])","v":0},"https://www.firstaidonly.com/waterjel-large-burn-kit-fabric-case.html?___store=fao",0,{"$f":"tblData[[#This Row],[Qty]]*tblData[[#This Row],[Unit Cost]]","v":0}]
[null,null,"Basic",null,null,"BurnKit",{"$f":"IFERROR(INDEX(Form!E$60:E$159,MATCH(tblData[[#This Row],[Type of Business]]&\"-\"&tblData[[#This Row],[Usage]],Form!B$60:B$159,0)),\"\")","v":""},"440-O/FAO","Burn Care Kit, 11 pcs.",{"$f":"INDIRECT(tblData[[#This Row],[Type of Business]]&tblData[[#This Row],[Usage]])","v":0},"https://www.firstaidonly.com/burn-care-kit-plastic-case.html?___store=fao",0,{"$f":"tblData[[#This Row],[Qty]]*tblData[[#This Row],[Unit Cost]]","v":0}]
[null,null,"Advanced",null,null,"BleedingControl",{"$f":"IFERROR(INDEX(Form!E$60:E$159,MATCH(tblData[[#This Row],[Type of Business]]&\"-\"&tblData[[#This Row],[Usage]],Form!B$60:B$159,0)),\"\")","v":""},91137,"Enhanced Pro Bleeding Control Bag",{"$f":"INDIRECT(tblData[[#This Row],[Type of Business]]&tblData[[#This Row],[Usage]])","v":0},"https://www.firstaidonly.com/enhanced-pro-bleeding-control-kit.html?___store=fao",0,{"$f":"tblData[[#This Row],[Qty]]*tblData[[#This Row],[Unit Cost]]","v":0}]
[null,null,"Basic",null,null,"BleedingControl",{"$f":"IFERROR(INDEX(Form!E$60:E$159,MATCH(tblData[[#This Row],[Type of Business]]&\"-\"&tblData[[#This Row],[Usage]],Form!B$60:B$159,0)),\"\")","v":""},91135,"Basic  Pro Bleeding Control Pouch",{"$f":"INDIRECT(tblData[[#This Row],[Type of Business]]&tblData[[#This Row],[Usage]])","v":0},"https://www.firstaidonly.com/basic-pro-bleeding-control-kit.html?___store=fao",0,{"$f":"tblData[[#This Row],[Qty]]*tblData[[#This Row],[Unit Cost]]","v":0}]
[null,null,"Advanced",null,null,"FleetVehicles",{"$f":"IFERROR(INDEX(Form!E$60:E$159,MATCH(tblData[[#This Row],[Type of Business]]&\"-\"&tblData[[#This Row],[Usage]],Form!B$60:B$159,0)),\"\")","v":""},90672,"25-person Metal, ANSI A, 114 pcs., Medications",{"$f":"INDIRECT(tblData[[#This Row],[Type of Business]]&tblData[[#This Row],[Usage]])","v":1},"https://www.firstaidonly.com/25-person-vehicle-ansi-a-first-aid-kit-metal-and-weatherproof-case.html?___store=fao",0,{"$f":"tblData[[#This Row],[Qty]]*tblData[[#This Row],[Unit Cost]]","v":0}]
[null,null,"Basic",null,null,"FleetVehicles",{"$f":"IFERROR(INDEX(Form!E$60:E$159,MATCH(tblData[[#This Row],[Type of Business]]&\"-\"&tblData[[#This Row],[Usage]],Form!B$60:B$159,0)),\"\")","v":""},91150,"10 person Bulk Plastic Case,89 pcs., NO MEDS",{"$f":"INDIRECT(tblData[[#This Row],[Type of Business]]&tblData[[#This Row],[Usage]])","v":0},"https://www.firstaidonly.com/10-person-plastic-light-duty-vehicle-first-aid-kit.html?___store=fao",0,{"$f":"tblData[[#This Row],[Qty]]*tblData[[#This Row],[Unit Cost]]","v":0}]
[null,null,"All",null,45,"Shelf",{"$f":"IFERROR(INDEX(Form!E$60:E$159,MATCH(\"4or5 Shelf\",Form!B$60:B$159,0)),\"\")","v":0},91131,"RetroFit Grid, ANSI B, No Meds, 218 pcs",{"$f":"IF(oneFoodService=\"\",INDIRECT(\"six\"&tblData[[#This Row],[Shelf]]&tblData[[#This Row],[Type of Business]]),0)","v":1},"https://www.firstaidonly.com/smartcompliance-retrofit-business-without-medications-50-person-ansi-compliant.html?___store=fao",0,{"$f":"tblData[[#This Row],[Qty]]*tblData[[#This Row],[Unit Cost]]","v":0}]
[null,null,"All",null,3,"Shelf",{"$f":"IFERROR(INDEX(Form!E$60:E$159,MATCH(\"3 Shelf\",Form!B$60:B$159,0)),\"\")","v":0},91172,"RetroFit Grid, ANSI A, No Meds, 108 pcs",{"$f":"INDIRECT(\"six\"&tblData[[#This Row],[Shelf]]&tblData[[#This Row],[Type of Business]])","v":0},"N/A",0,{"$f":"tblData[[#This Row],[Qty]]*tblData[[#This Row],[Unit Cost]]","v":0}]
[null,null,"FoodService",null,45,"Shelf",{"$f":"IFERROR(INDEX(Form!E$60:E$159,MATCH(\"4or5 Shelf\",Form!B$60:B$159,0)),\"\")","v":0},91132,"RetroFit Grid, ANSI B, No Meds, 262 pcs",{"$f":"IF(INDIRECT(\"one\" & tblData[[#This Row],[Usage]])=\"ü\",INDIRECT(\"six\"&tblData[[#This Row],[Shelf]]&tblData[[#This Row],[Type of Business]]),0)","v":0},"https://www.firstaidonly.com/smartcompliance-retrofit-food-service-without-medications-50-person-ansi-compliant.html?___store=fao",0,{"$f":"tblData[[#This Row],[Qty]]*tblData[[#This Row],[Unit Cost]]","v":0}]

{"sheet":"Filters","index":5,"n_rows":28,"n_cols":6,"rows_kept":28,"cut":false,"hidden":true,"merged":[]}
["Type of Business","SmartCompliance","Medications","Qty","Usage","Shelf"]
[{"$f":"IF(Form!C11=\"ü\",Form!D11,\"IGNORE\")","v":"Office"},{"$f":"IF(thirteenA=\"ü\",\"Yes\",\"No\")","v":"Yes"},{"$f":"IF(eightA=\"ü\",\"Yes\",\"No\")","v":"No"},">0","Heavy"]
[{"$f":"IF(Form!C11=\"ü\",Form!D11,\"IGNORE\")","v":"Office"},"Yes","No",">0","Medium"]
[{"$f":"IF(Form!C11=\"ü\",Form!D11,\"IGNORE\")","v":"Office"},"Yes","No",">0","Light"]
[{"$f":"IF(Form!C12=\"ü\",SUBSTITUTE(Form!D12,\" \",\"\"),\"IGNORE\")","v":"IGNORE"},"Yes","No",">0","Medium"]
[{"$f":"IF(Form!C12=\"ü\",SUBSTITUTE(Form!D12,\" \",\"\"),\"IGNORE\")","v":"IGNORE"},"Yes","No",">0","Light"]
[{"$f":"IF(Form!C13=\"ü\",SUBSTITUTE(Form!D13,\" \",\"\"),\"IGNORE\")","v":"IGNORE"},"Yes","No",">0","VeryHeavy"]
[{"$f":"IF(Form!C13=\"ü\",SUBSTITUTE(Form!D13,\" \",\"\"),\"IGNORE\")","v":"IGNORE"},"Yes","No",">0","Heavy"]
[{"$f":"IF(Form!F11=\"ü\",Form!G11,\"IGNORE\")","v":"IGNORE"},"Yes","No",">0","Heavy"]
[{"$f":"IF(Form!F11=\"ü\",Form!G11,\"IGNORE\")","v":"IGNORE"},"Yes","No",">0","Medium"]
[{"$f":"IF(Form!F11=\"ü\",Form!G11,\"IGNORE\")","v":"IGNORE"},"Yes","No",">0","Light"]
[{"$f":"IF(Form!F12=\"ü\",SUBSTITUTE(Form!G12,\" \",\"\"),\"IGNORE\")","v":"IGNORE"},"Yes","No",">0","Heavy"]
[{"$f":"IF(Form!F12=\"ü\",SUBSTITUTE(Form!G12,\" \",\"\"),\"IGNORE\")","v":"IGNORE"},"Yes","No",">0","Medium"]
[{"$f":"IF(Form!F12=\"ü\",SUBSTITUTE(Form!G12,\" \",\"\"),\"IGNORE\")","v":"IGNORE"},"Yes","No",">0","Light"]
["BBPKit",null,null,">0","Basic"]
["BBPKit",null,null,">0","Advanced"]
["FirstResponderKit",null,null,">0","Basic"]
["FirstResponderKit",null,null,">0","Advanced"]
["EyewashStation",null,null,">0","Basic"]
["EyewashStation",null,null,">0","Advanced"]
["BurnKit",null,null,">0","Basic"]
["BurnKit",null,null,">0","Advanced"]
["BleedingControl",null,null,">0","Basic"]
["BleedingControl",null,null,">0","Advanced"]
["FleetVehicles",null,null,">0","Basic"]
["FleetVehicles",null,null,">0","Advanced"]
["Shelf",null,null,">0",null,3]
["Shelf",null,null,">0",null,45]

{"sheet":"OSHA Rules","index":6,"n_rows":9,"n_cols":2,"rows_kept":9,"cut":false,"hidden":false,"merged":[]}
[]
["OSHA  Rules"]
[]
["First Aid Cabinet - OSHA Regulation","Addendum Text: OSHA says “First aid supplies are required to be readily available under paragraph § 1910.151(b). An example of the minimal contents of a generic first aid kit is described in American National Standard (ANSI) Z308.1.  First aid supplies must be readily available. This is generally considered to mean every floor in every building and separate kits for clean room, food manufacturing and/or food preparation areas. Employees should not have to travel more than 100 feet to secure adequate supplies    "]
["Eyewash - OSHA Regulation","Addendum Text:   Eyewash stations are critical emergency safety equipment intended to mitigate eye injuries when control methods (i.e., eye glasses) do not prevent exposure to a physical or chemical irritant or biological agent.  OSHA Federal Regulations part 1910.151(c) states:  \"Where the eyes  may be exposed to injurious corrosive chemicals, suitable facilities for quick drenching or flushing of the eyes and body shall be provided within the work area for immediate emergency use.  These corrosive chemicals include HIV and HBV research laboratories and production facilities and facilities where the eye may be splashed with solutions containing 0.1 percent or greater formaldehyde\".  Eyewash stations must be installed within 10 seconds walking time from the location of a hazard (approximately 55 feet), installed on the same level as the hazard (i.e. no stairs or ramps), and the path of travel from the hazard to the station should be free of obstructions and as straight as possible.   For more serious potential eye injuries, ANSI Z358.1-2009 specifies that eyewash stations must be capable of delivering tepid flushing fluid to the eyes not less than 1.5 liters per minute (0.4 gallons per minute) for 15 minutes after a single movement and subsequent hands-free operation.   Eyewash bottles are used where the hazard is a long distance from plumbed eyewash stations (i.e., an outside yard) or to help transport an injured worker to a treatment facility.  Eyewash bottles are also ideal when there is a potential hazard to the eye but it is of minimal risk or severity and OSHA or ANSI doesn’t require it. (i.e., Allergens, sawdust or smoke)"]
["Burns (No specific OSHA rules but there are ANSI requirements","The treatment of burns depends on the location and severity of the damage. Sunburns and small scalds can usually be treated at home. Deep or widespread burns need immediate medical attention.   Burns are very painful.  It is very important to apply a burn dressing to the burn area to prevent infection and soothe the victim’s pain.  There are first aid supplies that can both soothe the pain and protect the wound from infection.   For occupations that have the potential for experiencing a severe burn, these first aid kits have dedicated severe burn treatment supplies of items such as Burn Dressings, Burn Cream and Burn Gel:"]
["Bleeding Control Kits (No specific OSHA rules but there are numerous states considering legislation to make Bleeding Control kits mandatory in certain public buildings like schools.","Addendum Text:  Bleeding to death can happen very quickly. If the hemorrhaging isn’t stopped, a person can bleed to death in just five minutes. And if their injuries are severe, this timeline may be even shorter.   That is why it’s important to give co-workers the tools to stop a bleeding event before professional help arrives.  Many occupations or job activities have the potential for a severe bleeding event.   These type of injuries might occur from handling sharp objects, fast moving machinery or saw blades, vehicle accidents and unfortunately gun-related events.  Therefore Bleeding Control kits should be at every worksite.   Some kits have the first aid tools to stop limb wounds with basic and advanced tourniquets while others have hemostatic blood-clotting gauze pads to stop bleeding fast on the torso or limbs"]
["Bloodborne Pathogen Kits - OSHA regulation","Addendum Text:  Bloodborne pathogens can be transmitted through the eyes, skin, nose or mouth, even under the skin if the skin is punctured. An extremely common disease caused by exposure is hepatitis B virus (HBV), hepatitis C virus (HCV), and human immunodeficiency virus (HIV).   Bloodborne pathogens are microorganisms that can be found in the blood or other types of body fluids that can cause serious illness and even diseases. These pathogens can be transmitted through the eyes, skin, nose or mouth, even under the skin if the skin is punctured. An extremely common disease caused by exposure is hepatitis B virus (HBV), hepatitis C virus (HCV), and human immunodeficiency virus (HIV). Many times people carrying bloodborne pathogens may not even be aware that they are infected.\nOSHA adopted a policy in March 1992 (CFR 1910.1030) that was designed to limit exposure to bloodborne pathogens and various types of body fluids at the workplace.  The standard covers any and all employers where there may be a reasonable chance of exposure to bloodborne pathogens.  If through the normal course of an employee’s job function he or she could reasonably be expected to come into contact with potentially infectious bodily fluids (blood, urine, vomit, etc;), compliance with the Bloodborne Pathogens Standard of protection and training is required.  At no cost to the employee, all employers must provide and require employees to use the protective clothing and equipment."]
["Vehicle Kits, OSHA recommendation","Addendum Text:   In order to insure ready availability of first aid supplies to all employees while on the job, company vehicles should include first aid kits. The employee’s company-provided work vehicle is literally their “workplace” and is subject to OSHA regulations just as a facility would be.    OSHA’s General Industry medical and first aid regulation mandates employers to ensure that “adequate first aid supplies [are] readily available” in the workplace. See 29 CFR 1910.151(b).  An important facet of first aid pertains to its location. The first aid kit must be “readily available,” i.e. easy to access in the event of an emergency. This issue is often relatively simple at fixed facilities, but can become more complicated when employees work off-site or drive in company vehicles. In situations like these, employers cannot forget that a first aid kit should be “readily available.” Accordingly, if employers have, for example, delivery truck drivers, it is recommended that these employers equip their trucks with first aid kits.  Most vehicle first aid kits are designated by the number of employees at a remote job site that the vehicle would drive to.  For example a 50-person Vehicle first aid kit is for a vehicle that would typically visit one or more job sites with 50 persons working at those sites.  "]

{"sheet":"SC Cost Calculator","index":7,"n_rows":24,"n_cols":5,"rows_kept":24,"cut":false,"hidden":true,"merged":[]}
[]
[]
[]
[]
[]
[]
[]
[null,"SmartCompliance First Aid Program Cost Calculator"]
[null,null,null,"MSRP","SmartCompliance Cabinet Size"]
[null,1,"How many first aid cabinets do you have in your facility?",468.94,"XL - ANSI Class B+"]
[null,426.4,"Cabinet Cost (from table)",426.4,"XL - ANSI Class B+"]
[null,{"$f":"B10*B11","v":426.4},"Total Initial Investment with SmartCompliance",191.78,"Large - ANSI Class A+"]
[null,null,null,127.82,"Medium - ANSI Class A"]
[null,{"$f":"350*3","v":1050},"What is your quarterly (3 month) spend with your current first aid provider?",149.9,"Retrofit - ANSI Class B 4 & 5-Shelf"]
[null,{"$f":"B14/3","v":350},"Monthly Average",99.98,"Retrofit - ANSI Class A 3-Shelf"]
[null,null,null,"**Retrofit for existing cabinets**"]
[null,{"$f":"B10*2.5*4.42","v":11.05},"Monthly Refill Average (2.5 Refills per Cabinet)",null,"End Users populate yellow cells"]
[]
[null,{"$f":"B12+(B17*2)","v":448.5},"Three (3) Month Total with SmartCompliance",null,"Distributors populate cabinet pricing"]
[]
[null,{"$f":"B14-B19","v":601.5},"First Three (3) Month Savings with SmartCompliance",null,"Savings to be realized"]
[]
[null,{"$f":"B21+((B14*3)-(B17*9))","v":3652.05},"First Year Savings with SmartCompliance"]
[null,{"$f":"((B14*4)-(B17*12))","v":4067.4},"Annual Savings with SmartCompliance"]